Workbook

Sheet 岳阳县农业农村局2026年度巩固拓展脱贫攻坚成果和乡村振
A2: 岳阳县农业农村局2026年度巩固拓展脱贫攻坚成果和乡村振兴项目库入库项目申报分类汇总表
A3: 单位（盖章）： 单位：万元、个、人
A4: 序号 | B4: 项目类型 | C4: 项目个数 | D4: 资金规模和筹资方式 | G4: 受益对象 | M4: 备注
D5: 项目预算 总投资 | E5: 其中 | G5: 受益村 （个） | H5: 受益户数 （户） | I5: 受益人口数 （人） | J5: 其中
E6: 财政 资金 | F6: 其他 资金 | J6: 受益脱贫村数（个） | K6: 受益脱贫户数及监测对象户数（户） | L6: 受益脱贫人口数及监测对象人口数（人）
B7: 总 计 | C7: =C8+C14+C20+C25 -> 439 | D7: 30356.405 | E7: 21185 | F7: 8621.905 | G7: 192 | H7: 25056 | I7: 27633 | J7: 46 | K7: 9890 | L7: 10210
B8: 一、产业发展 | C8: =SUM(C9:C13) -> 272 | D8: =SUM(D9:D13) -> 21073.605 | E8: =SUM(E9:E13) -> 14600 | F8: =SUM(F9:F13) -> 6108.105 | G8: 192 | H8: 19950 | I8: 16000 | J8: 46 | K8: 5570 | L8: 10210
B9: 1.生产项目 | C9: =COUNTIF(岳阳县2026年度巩固拓展脱贫攻坚成果和乡村振兴项目库入库项目!C6:C444,"生产项目") -> 121 | D9: =SUMIF(岳阳县2026年度巩固拓展脱贫攻坚成果和乡村振兴项目库入库项目!C6:C444,"生产项目",岳阳县2026年度巩固拓展脱贫攻坚成果和乡村振兴项目库入库项目!N6:N444) -> 5221.835 | E9: =SUMIF(岳阳县2026年度巩固拓展脱贫攻坚成果和乡村振兴项目库入库项目!C6:C444,"生产项目",岳阳县2026年度巩固拓展脱贫攻坚成果和乡村振兴项目库入库项目!O6:O444) -> 3204.5 | F9: =SUMIF(岳阳县2026年度巩固拓展脱贫攻坚成果和乡村振兴项目库入库项目!C6:C444,"生产项目",岳阳县2026年度巩固拓展脱贫攻坚成果和乡村振兴项目库入库项目!P6:P444) -> 1762.335 | G9: 192 | H9: 19950 | I9: 16000 | J9: 46 | K9: 3320 | L9: 6640
B10: 2.加工流通项目 | C10: =COUNTIF(岳阳县2026年度巩固拓展脱贫攻坚成果和乡村振兴项目库入库项目!C6:C444,"加工流通项目") -> 6 | D10: =SUMIF(岳阳县2026年度巩固拓展脱贫攻坚成果和乡村振兴项目库入库项目!C6:C444,"加工流通项目",岳阳县2026年度巩固拓展脱贫攻坚成果和乡村振兴项目库入库项目!N6:N444) -> 2155 | E10: =SUMIF(岳阳县2026年度巩固拓展脱贫攻坚成果和乡村振兴项目库入库项目!C6:C444,"加工流通项目",岳阳县2026年度巩固拓展脱贫攻坚成果和乡村振兴项目库入库项目!O6:O444) -> 275 | F10: =SUMIF(岳阳县2026年度巩固拓展脱贫攻坚成果和乡村振兴项目库入库项目!C6:C444,"加工流通项目",岳阳县2026年度巩固拓展脱贫攻坚成果和乡村振兴项目库入库项目!P6:P444) -> 1850 | G10: =SUMIF(岳阳县2026年度巩固拓展脱贫攻坚成果和乡村振兴项目库入库项目!C6:C444,"加工流通项目",岳阳县2026年度巩固拓展脱贫攻坚成果和乡村振兴项目库入库项目!Q6:Q444) -> 6 | H10: =SUMIF(岳阳县2026年度巩固拓展脱贫攻坚成果和乡村振兴项目库入库项目!C6:C444,"加工流通项目",岳阳县2026年度巩固拓展脱贫攻坚成果和乡村振兴项目库入库项目!R6:R444) -> 3395 | I10: =SUMIF(岳阳县2026年度巩固拓展脱贫攻坚成果和乡村振兴项目库入库项目!C6:C444,"加工流通项目",岳阳县2026年度巩固拓展脱贫攻坚成果和乡村振兴项目库入库项目!S6:S444) -> 13040 | J10: =SUMIF(岳阳县2026年度巩固拓展脱贫攻坚成果和乡村振兴项目库入库项目!C6:C444,"加工流通项目",岳阳县2026年度巩固拓展脱贫攻坚成果和乡村振兴项目库入库项目!T6:T444) -> 5 | K10: =SUMIF(岳阳县2026年度巩固拓展脱贫攻坚成果和乡村振兴项目库入库项目!C6:C444,"加工流通项目",岳阳县2026年度巩固拓展脱贫攻坚成果和乡村振兴项目库入库项目!U6:U444) -> 269 | L10: =SUMIF(岳阳县2026年度巩固拓展脱贫攻坚成果和乡村振兴项目库入库项目!C6:C444,"加工流通项目",岳阳县2026年度巩固拓展脱贫攻坚成果和乡村振兴项目库入库项目!V6:V444) -> 821
B11: 3.配套设施项目 | C11: =COUNTIF(岳阳县2026年度巩固拓展脱贫攻坚成果和乡村振兴项目库入库项目!C6:C444,"配套基础设施项目") -> 138 | D11: =SUMIF(岳阳县2026年度巩固拓展脱贫攻坚成果和乡村振兴项目库入库项目!C6:C444,"配套基础设施项目",岳阳县2026年度巩固拓展脱贫攻坚成果和乡村振兴项目库入库项目!N6:N444) -> 12572.77 | E11: =SUMIF(岳阳县2026年度巩固拓展脱贫攻坚成果和乡村振兴项目库入库项目!C6:C444,"配套基础设施项目",岳阳县2026年度巩固拓展脱贫攻坚成果和乡村振兴项目库入库项目!O6:O444) -> 10012.5 | F11: =SUMIF(岳阳县2026年度巩固拓展脱贫攻坚成果和乡村振兴项目库入库项目!C6:C444,"配套基础设施项目",岳阳县2026年度巩固拓展脱贫攻坚成果和乡村振兴项目库入库项目!P6:P444) -> 2479.77 | G11: 192 | H11: 19950 | I11: 16000 | J11: =SUMIF(岳阳县2026年度巩固拓展脱贫攻坚成果和乡村振兴项目库入库项目!C6:C444,"配套基础设施项目",岳阳县2026年度巩固拓展脱贫攻坚成果和乡村振兴项目库入库项目!T6:T444) -> 155 | K11: =SUMIF(岳阳县2026年度巩固拓展脱贫攻坚成果和乡村振兴项目库入库项目!C6:C444,"配套基础设施项目",岳阳县2026年度巩固拓展脱贫攻坚成果和乡村振兴项目库入库项目!U6:U444) -> 5379 | L11: =SUMIF(岳阳县2026年度巩固拓展脱贫攻坚成果和乡村振兴项目库入库项目!C6:C444,"配套基础设施项目",岳阳县2026年度巩固拓展脱贫攻坚成果和乡村振兴项目库入库项目!V6:V444) -> 13835
B12: 4.产业服务支撑项目 | C12: =COUNTIF(岳阳县2026年度巩固拓展脱贫攻坚成果和乡村振兴项目库入库项目!C6:C444,"产业服务支撑项目") -> 5 | D12: =SUMIF(岳阳县2026年度巩固拓展脱贫攻坚成果和乡村振兴项目库入库项目!C6:C444,"产业服务支撑项目",岳阳县2026年度巩固拓展脱贫攻坚成果和乡村振兴项目库入库项目!N6:N444) -> 144 | E12: =SUMIF(岳阳县2026年度巩固拓展脱贫攻坚成果和乡村振兴项目库入库项目!C6:C444,"产业服务支撑项目",岳阳县2026年度巩固拓展脱贫攻坚成果和乡村振兴项目库入库项目!O6:O444) -> 128 | F12: =SUMIF(岳阳县2026年度巩固拓展脱贫攻坚成果和乡村振兴项目库入库项目!C6:C444,"产业服务支撑项目",岳阳县2026年度巩固拓展脱贫攻坚成果和乡村振兴项目库入库项目!P6:P444) -> 16 | G12: =SUMIF(岳阳县2026年度巩固拓展脱贫攻坚成果和乡村振兴项目库入库项目!C6:C444,"产业服务支撑项目",岳阳县2026年度巩固拓展脱贫攻坚成果和乡村振兴项目库入库项目!Q6:Q444) -> 5 | H12: =SUMIF(岳阳县2026年度巩固拓展脱贫攻坚成果和乡村振兴项目库入库项目!C6:C444,"产业服务支撑项目",岳阳县2026年度巩固拓展脱贫攻坚成果和乡村振兴项目库入库项目!R6:R444) -> 5779 | I12: =SUMIF(岳阳县2026年度巩固拓展脱贫攻坚成果和乡村振兴项目库入库项目!C6:C444,"产业服务支撑项目",岳阳县2026年度巩固拓展脱贫攻坚成果和乡村振兴项目库入库项目!S6:S444) -> 21733 | J12: =SUMIF(岳阳县2026年度巩固拓展脱贫攻坚成果和乡村振兴项目库入库项目!C6:C444,"产业服务支撑项目",岳阳县2026年度巩固拓展脱贫攻坚成果和乡村振兴项目库入库项目!T6:T444) -> 2 | K12: =SUMIF(岳阳县2026年度巩固拓展脱贫攻坚成果和乡村振兴项目库入库项目!C6:C444,"产业服务支撑项目",岳阳县2026年度巩固拓展脱贫攻坚成果和乡村振兴项目库入库项目!U6:U444) -> 372 | L12: =SUMIF(岳阳县2026年度巩固拓展脱贫攻坚成果和乡村振兴项目库入库项目!C6:C444,"产业服务支撑项目",岳阳县2026年度巩固拓展脱贫攻坚成果和乡村振兴项目库入库项目!V6:V444) -> 949
B13: 5.金融保险配套项目 | C13: =COUNTIF(岳阳县2026年度巩固拓展脱贫攻坚成果和乡村振兴项目库入库项目!C6:C444,"金融保险配套项目") -> 2 | D13: =SUMIF(岳阳县2026年度巩固拓展脱贫攻坚成果和乡村振兴项目库入库项目!C6:C444,"金融保险配套项目",岳阳县2026年度巩固拓展脱贫攻坚成果和乡村振兴项目库入库项目!N6:N444) -> 980 | E13: =SUMIF(岳阳县2026年度巩固拓展脱贫攻坚成果和乡村振兴项目库入库项目!C6:C444,"金融保险配套项目",岳阳县2026年度巩固拓展脱贫攻坚成果和乡村振兴项目库入库项目!O6:O444) -> 980 | F13: =SUMIF(岳阳县2026年度巩固拓展脱贫攻坚成果和乡村振兴项目库入库项目!C6:C444,"金融保险配套项目",岳阳县2026年度巩固拓展脱贫攻坚成果和乡村振兴项目库入库项目!P6:P444) -> 0 | G13: 192 | H13: 19950 | I13: 16000 | J13: =SUMIF(岳阳县2026年度巩固拓展脱贫攻坚成果和乡村振兴项目库入库项目!C6:C444,"金融保险配套项目",岳阳县2026年度巩固拓展脱贫攻坚成果和乡村振兴项目库入库项目!T6:T444) -> 92 | K13: =SUMIF(岳阳县2026年度巩固拓展脱贫攻坚成果和乡村振兴项目库入库项目!C6:C444,"金融保险配套项目",岳阳县2026年度巩固拓展脱贫攻坚成果和乡村振兴项目库入库项目!U6:U444) -> 2450 | L13: =SUMIF(岳阳县2026年度巩固拓展脱贫攻坚成果和乡村振兴项目库入库项目!C6:C444,"金融保险配套项目",岳阳县2026年度巩固拓展脱贫攻坚成果和乡村振兴项目库入库项目!V6:V444) -> 4000
B14: 二、就业项目 | C14: =SUM(C15:C19) -> 13 | D14: =SUM(D15:D19) -> 1508 | E14: =SUM(E15:E19) -> 1518 | F14: =SUM(F15:F19) -> 15 | G14: 192 | H14: 2576 | I14: 5906 | J14: 46 | K14: 2576 | L14: 5906
B15: 1.务工补助 | C15: =COUNTIF(岳阳县2026年度巩固拓展脱贫攻坚成果和乡村振兴项目库入库项目!C6:C444,"务工补助") -> 10 | D15: =SUMIF(岳阳县2026年度巩固拓展脱贫攻坚成果和乡村振兴项目库入库项目!C6:C444,"务工补助",岳阳县2026年度巩固拓展脱贫攻坚成果和乡村振兴项目库入库项目!N6:N444) -> 528 | E15: =SUMIF(岳阳县2026年度巩固拓展脱贫攻坚成果和乡村振兴项目库入库项目!C6:C444,"务工补助",岳阳县2026年度巩固拓展脱贫攻坚成果和乡村振兴项目库入库项目!O6:O444) -> 553 | F15: =SUMIF(岳阳县2026年度巩固拓展脱贫攻坚成果和乡村振兴项目库入库项目!C6:C444,"务工补助",岳阳县2026年度巩固拓展脱贫攻坚成果和乡村振兴项目库入库项目!P6:P444) -> 0 | G15: 192 | H15: =SUMIF(岳阳县2026年度巩固拓展脱贫攻坚成果和乡村振兴项目库入库项目!C6:C444,"务工补助",岳阳县2026年度巩固拓展脱贫攻坚成果和乡村振兴项目库入库项目!R6:R444) -> 6176 | I15: =SUMIF(岳阳县2026年度巩固拓展脱贫攻坚成果和乡村振兴项目库入库项目!C6:C444,"务工补助",岳阳县2026年度巩固拓展脱贫攻坚成果和乡村振兴项目库入库项目!S6:S444) -> 18141 | J15: 46 | K15: =SUMIF(岳阳县2026年度巩固拓展脱贫攻坚成果和乡村振兴项目库入库项目!C6:C444,"务工补助",岳阳县2026年度巩固拓展脱贫攻坚成果和乡村振兴项目库入库项目!U6:U444) -> 3662 | L15: =SUMIF(岳阳县2026年度巩固拓展脱贫攻坚成果和乡村振兴项目库入库项目!C6:C444,"务工补助",岳阳县2026年度巩固拓展脱贫攻坚成果和乡村振兴项目库入库项目!V6:V444) -> 10755
B16: 2.乡村车间 | C16: =COUNTIF(岳阳县2026年度巩固拓展脱贫攻坚成果和乡村振兴项目库入库项目!C6:C444,"就业") -> 2 | D16: =SUMIF(岳阳县2026年度巩固拓展脱贫攻坚成果和乡村振兴项目库入库项目!C6:C444,"就业",岳阳县2026年度巩固拓展脱贫攻坚成果和乡村振兴项目库入库项目!N6:N444) -> 80 | E16: =SUMIF(岳阳县2026年度巩固拓展脱贫攻坚成果和乡村振兴项目库入库项目!C6:C444,"就业",岳阳县2026年度巩固拓展脱贫攻坚成果和乡村振兴项目库入库项目!O6:O444) -> 65 | F16: =SUMIF(岳阳县2026年度巩固拓展脱贫攻坚成果和乡村振兴项目库入库项目!C6:C444,"就业",岳阳县2026年度巩固拓展脱贫攻坚成果和乡村振兴项目库入库项目!P6:P444) -> 15 | G16: 29 | H16: =SUMIF(岳阳县2026年度巩固拓展脱贫攻坚成果和乡村振兴项目库入库项目!C6:C444,"就业",岳阳县2026年度巩固拓展脱贫攻坚成果和乡村振兴项目库入库项目!R6:R444) -> 161 | I16: =SUMIF(岳阳县2026年度巩固拓展脱贫攻坚成果和乡村振兴项目库入库项目!C6:C444,"就业",岳阳县2026年度巩固拓展脱贫攻坚成果和乡村振兴项目库入库项目!S6:S444) -> 356 | J16: 29 | K16: =SUMIF(岳阳县2026年度巩固拓展脱贫攻坚成果和乡村振兴项目库入库项目!C6:C444,"就业",岳阳县2026年度巩固拓展脱贫攻坚成果和乡村振兴项目库入库项目!U6:U444) -> 133 | L16: =SUMIF(岳阳县2026年度巩固拓展脱贫攻坚成果和乡村振兴项目库入库项目!C6:C444,"就业",岳阳县2026年度巩固拓展脱贫攻坚成果和乡村振兴项目库入库项目!V6:V444) -> 241
B17: 3.创业 | C17: =COUNTIF(岳阳县2026年度巩固拓展脱贫攻坚成果和乡村振兴项目库入库项目!C6:C444,"创业") -> 0 | D17: =SUMIF(岳阳县2026年度巩固拓展脱贫攻坚成果和乡村振兴项目库入库项目!C6:C444,"创业",岳阳县2026年度巩固拓展脱贫攻坚成果和乡村振兴项目库入库项目!N6:N444) -> 0 | E17: =SUMIF(岳阳县2026年度巩固拓展脱贫攻坚成果和乡村振兴项目库入库项目!C6:C444,"创业",岳阳县2026年度巩固拓展脱贫攻坚成果和乡村振兴项目库入库项目!O6:O444) -> 0 | F17: =SUMIF(岳阳县2026年度巩固拓展脱贫攻坚成果和乡村振兴项目库入库项目!C6:C444,"创业",岳阳县2026年度巩固拓展脱贫攻坚成果和乡村振兴项目库入库项目!P6:P444) -> 0 | G17: =SUMIF(岳阳县2026年度巩固拓展脱贫攻坚成果和乡村振兴项目库入库项目!C6:C444,"创业",岳阳县2026年度巩固拓展脱贫攻坚成果和乡村振兴项目库入库项目!Q6:Q444) -> 0 | H17: =SUMIF(岳阳县2026年度巩固拓展脱贫攻坚成果和乡村振兴项目库入库项目!C6:C444,"创业",岳阳县2026年度巩固拓展脱贫攻坚成果和乡村振兴项目库入库项目!R6:R444) -> 0 | I17: =SUMIF(岳阳县2026年度巩固拓展脱贫攻坚成果和乡村振兴项目库入库项目!C6:C444,"创业",岳阳县2026年度巩固拓展脱贫攻坚成果和乡村振兴项目库入库项目!S6:S444) -> 0 | J17: =SUMIF(岳阳县2026年度巩固拓展脱贫攻坚成果和乡村振兴项目库入库项目!C6:C444,"创业",岳阳县2026年度巩固拓展脱贫攻坚成果和乡村振兴项目库入库项目!T6:T444) -> 0 | K17: =SUMIF(岳阳县2026年度巩固拓展脱贫攻坚成果和乡村振兴项目库入库项目!C6:C444,"创业",岳阳县2026年度巩固拓展脱贫攻坚成果和乡村振兴项目库入库项目!U6:U444) -> 0 | L17: =SUMIF(岳阳县2026年度巩固拓展脱贫攻坚成果和乡村振兴项目库入库项目!C6:C444,"创业",岳阳县2026年度巩固拓展脱贫攻坚成果和乡村振兴项目库入库项目!V6:V444) -> 0
B18: 4.乡村工匠 | C18: =COUNTIF(岳阳县2026年度巩固拓展脱贫攻坚成果和乡村振兴项目库入库项目!C6:C444,"乡村工匠") -> 0 | D18: 0 | E18: 0 | F18: 0 | G18: 0 | H18: 0 | I18: 0 | J18: 0 | K18: 0 | L18: 0
B19: 5.公益性岗位 | C19: =COUNTIF(岳阳县2026年度巩固拓展脱贫攻坚成果和乡村振兴项目库入库项目!C6:C444,"公益性岗位") -> 1 | D19: =SUMIF(岳阳县2026年度巩固拓展脱贫攻坚成果和乡村振兴项目库入库项目!C6:C444,"公益性岗位",岳阳县2026年度巩固拓展脱贫攻坚成果和乡村振兴项目库入库项目!N6:N444) -> 900 | E19: =SUMIF(岳阳县2026年度巩固拓展脱贫攻坚成果和乡村振兴项目库入库项目!C6:C444,"公益性岗位",岳阳县2026年度巩固拓展脱贫攻坚成果和乡村振兴项目库入库项目!O6:O444) -> 900 | F19: =SUMIF(岳阳县2026年度巩固拓展脱贫攻坚成果和乡村振兴项目库入库项目!C6:C444,"公益性岗位",岳阳县2026年度巩固拓展脱贫攻坚成果和乡村振兴项目库入库项目!P6:P444) -> 0 | G19: =SUMIF(岳阳县2026年度巩固拓展脱贫攻坚成果和乡村振兴项目库入库项目!C6:C444,"公益性岗位",岳阳县2026年度巩固拓展脱贫攻坚成果和乡村振兴项目库入库项目!Q6:Q444) -> 192 | H19: =SUMIF(岳阳县2026年度巩固拓展脱贫攻坚成果和乡村振兴项目库入库项目!C6:C444,"公益性岗位",岳阳县2026年度巩固拓展脱贫攻坚成果和乡村振兴项目库入库项目!R6:R444) -> 800 | I19: =SUMIF(岳阳县2026年度巩固拓展脱贫攻坚成果和乡村振兴项目库入库项目!C6:C444,"公益性岗位",岳阳县2026年度巩固拓展脱贫攻坚成果和乡村振兴项目库入库项目!S6:S444) -> 1000 | J19: =SUMIF(岳阳县2026年度巩固拓展脱贫攻坚成果和乡村振兴项目库入库项目!C6:C444,"公益性岗位",岳阳县2026年度巩固拓展脱贫攻坚成果和乡村振兴项目库入库项目!T6:T444) -> 46 | K19: =SUMIF(岳阳县2026年度巩固拓展脱贫攻坚成果和乡村振兴项目库入库项目!C6:C444,"公益性岗位",岳阳县2026年度巩固拓展脱贫攻坚成果和乡村振兴项目库入库项目!U6:U444) -> 800 | L19: =SUMIF(岳阳县2026年度巩固拓展脱贫攻坚成果和乡村振兴项目库入库项目!C6:C444,"公益性岗位",岳阳县2026年度巩固拓展脱贫攻坚成果和乡村振兴项目库入库项目!V6:V444) -> 1000
B20: 三、乡村建设行动 | C20: =SUM(C21:C23) -> 153 | D20: 7494.8 | E20: 4787 | F20: 2498.8 | G20: 190 | H20: 44185 | I20: 167911 | J20: 46 | K20: 5770 | L20: 2600
B21: 1.农村基础设施 | C21: =COUNTIF(岳阳县2026年度巩固拓展脱贫攻坚成果和乡村振兴项目库入库项目!C6:C444,"农村基础设施") -> 147 | D21: =SUMIF(岳阳县2026年度巩固拓展脱贫攻坚成果和乡村振兴项目库入库项目!C6:C444,"农村基础设施",岳阳县2026年度巩固拓展脱贫攻坚成果和乡村振兴项目库入库项目!N6:N444) -> 7289.8 | E21: =SUMIF(岳阳县2026年度巩固拓展脱贫攻坚成果和乡村振兴项目库入库项目!C6:C444,"农村基础设施",岳阳县2026年度巩固拓展脱贫攻坚成果和乡村振兴项目库入库项目!O6:O444) -> 4586 | F21: =SUMIF(岳阳县2026年度巩固拓展脱贫攻坚成果和乡村振兴项目库入库项目!C6:C444,"农村基础设施",岳阳县2026年度巩固拓展脱贫攻坚成果和乡村振兴项目库入库项目!P6:P444) -> 2494.8 | G21: =SUMIF(岳阳县2026年度巩固拓展脱贫攻坚成果和乡村振兴项目库入库项目!C6:C444,"农村基础设施",岳阳县2026年度巩固拓展脱贫攻坚成果和乡村振兴项目库入库项目!Q6:Q444) -> 178 | H21: =SUMIF(岳阳县2026年度巩固拓展脱贫攻坚成果和乡村振兴项目库入库项目!C6:C444,"农村基础设施",岳阳县2026年度巩固拓展脱贫攻坚成果和乡村振兴项目库入库项目!R6:R444) -> 43997 | I21: =SUMIF(岳阳县2026年度巩固拓展脱贫攻坚成果和乡村振兴项目库入库项目!C6:C444,"农村基础设施",岳阳县2026年度巩固拓展脱贫攻坚成果和乡村振兴项目库入库项目!S6:S444) -> 163891 | J21: 46 | K21: =SUMIF(岳阳县2026年度巩固拓展脱贫攻坚成果和乡村振兴项目库入库项目!C6:C444,"农村基础设施",岳阳县2026年度巩固拓展脱贫攻坚成果和乡村振兴项目库入库项目!U6:U444) -> 3060 | L21: =SUMIF(岳阳县2026年度巩固拓展脱贫攻坚成果和乡村振兴项目库入库项目!C6:C444,"农村基础设施",岳阳县2026年度巩固拓展脱贫攻坚成果和乡村振兴项目库入库项目!V6:V444) -> 9739
B22: 2.人居环境整治 | C22: =COUNTIF(岳阳县2026年度巩固拓展脱贫攻坚成果和乡村振兴项目库入库项目!C6:C444,"人居环境整治") -> 3 | D22: =SUMIF(岳阳县2026年度巩固拓展脱贫攻坚成果和乡村振兴项目库入库项目!C6:C444,"人居环境整治",岳阳县2026年度巩固拓展脱贫攻坚成果和乡村振兴项目库入库项目!N6:N444) -> 28 | E22: =SUMIF(岳阳县2026年度巩固拓展脱贫攻坚成果和乡村振兴项目库入库项目!C6:C444,"人居环境整治",岳阳县2026年度巩固拓展脱贫攻坚成果和乡村振兴项目库入库项目!O6:O444) -> 25 | F22: =SUMIF(岳阳县2026年度巩固拓展脱贫攻坚成果和乡村振兴项目库入库项目!C6:C444,"人居环境整治",岳阳县2026年度巩固拓展脱贫攻坚成果和乡村振兴项目库入库项目!P6:P444) -> 3 | G22: =SUMIF(岳阳县2026年度巩固拓展脱贫攻坚成果和乡村振兴项目库入库项目!C6:C444,"人居环境整治",岳阳县2026年度巩固拓展脱贫攻坚成果和乡村振兴项目库入库项目!Q6:Q444) -> 3 | H22: =SUMIF(岳阳县2026年度巩固拓展脱贫攻坚成果和乡村振兴项目库入库项目!C6:C444,"人居环境整治",岳阳县2026年度巩固拓展脱贫攻坚成果和乡村振兴项目库入库项目!R6:R444) -> 188 | I22: =SUMIF(岳阳县2026年度巩固拓展脱贫攻坚成果和乡村振兴项目库入库项目!C6:C444,"人居环境整治",岳阳县2026年度巩固拓展脱贫攻坚成果和乡村振兴项目库入库项目!S6:S444) -> 762 | J22: =SUMIF(岳阳县2026年度巩固拓展脱贫攻坚成果和乡村振兴项目库入库项目!C6:C444,"人居环境整治",岳阳县2026年度巩固拓展脱贫攻坚成果和乡村振兴项目库入库项目!T6:T444) -> 3 | K22: =SUMIF(岳阳县2026年度巩固拓展脱贫攻坚成果和乡村振兴项目库入库项目!C6:C444,"人居环境整治",岳阳县2026年度巩固拓展脱贫攻坚成果和乡村振兴项目库入库项目!U6:U444) -> 22 | L22: =SUMIF(岳阳县2026年度巩固拓展脱贫攻坚成果和乡村振兴项目库入库项目!C6:C444,"人居环境整治",岳阳县2026年度巩固拓展脱贫攻坚成果和乡村振兴项目库入库项目!V6:V444) -> 68
B23: 3.农村公共服务 | C23: =COUNTIF(岳阳县2026年度巩固拓展脱贫攻坚成果和乡村振兴项目库入库项目!C6:C444,"农村公共服务") -> 3 | D23: =SUMIF(岳阳县2026年度巩固拓展脱贫攻坚成果和乡村振兴项目库入库项目!C6:C444,"农村公共服务",岳阳县2026年度巩固拓展脱贫攻坚成果和乡村振兴项目库入库项目!N6:N444) -> 177 | E23: =SUMIF(岳阳县2026年度巩固拓展脱贫攻坚成果和乡村振兴项目库入库项目!C6:C444,"农村公共服务",岳阳县2026年度巩固拓展脱贫攻坚成果和乡村振兴项目库入库项目!O6:O444) -> 176 | F23: =SUMIF(岳阳县2026年度巩固拓展脱贫攻坚成果和乡村振兴项目库入库项目!C6:C444,"农村公共服务",岳阳县2026年度巩固拓展脱贫攻坚成果和乡村振兴项目库入库项目!P6:P444) -> 1 | G23: =SUMIF(岳阳县2026年度巩固拓展脱贫攻坚成果和乡村振兴项目库入库项目!C6:C444,"农村公共服务",岳阳县2026年度巩固拓展脱贫攻坚成果和乡村振兴项目库入库项目!Q6:Q444) -> 9 | H23: =SUMIF(岳阳县2026年度巩固拓展脱贫攻坚成果和乡村振兴项目库入库项目!C6:C444,"农村公共服务",岳阳县2026年度巩固拓展脱贫攻坚成果和乡村振兴项目库入库项目!G22:Q444) -> 0 | I23: =SUMIF(岳阳县2026年度巩固拓展脱贫攻坚成果和乡村振兴项目库入库项目!C6:C444,"农村公共服务",岳阳县2026年度巩固拓展脱贫攻坚成果和乡村振兴项目库入库项目!S6:S444) -> 3258 | J23: =SUMIF(岳阳县2026年度巩固拓展脱贫攻坚成果和乡村振兴项目库入库项目!C6:C444,"农村公共服务",岳阳县2026年度巩固拓展脱贫攻坚成果和乡村振兴项目库入库项目!T6:T444) -> 9 | K23: =SUMIF(岳阳县2026年度巩固拓展脱贫攻坚成果和乡村振兴项目库入库项目!C6:C444,"农村公共服务",岳阳县2026年度巩固拓展脱贫攻坚成果和乡村振兴项目库入库项目!U6:U444) -> 62 | L23: =SUMIF(岳阳县2026年度巩固拓展脱贫攻坚成果和乡村振兴项目库入库项目!C6:C444,"农村公共服务",岳阳县2026年度巩固拓展脱贫攻坚成果和乡村振兴项目库入库项目!V6:V444) -> 188
B24: 四、易地搬迁后扶
B25: 五、巩固三保障成果 | C25: 1 | D25: 280 | E25: 280 | G25: 192 | H25: 1500 | I25: 1600 | J25: 46 | K25: 1500 | L25: 1600
B26: 1.住房
B27: 2.教育 | C27: 1 | D27: 280 | E27: 280 | G27: 192 | H27: 1500 | I27: 1600 | J27: 46 | K27: 1500 | L27: 1600
B28: 3.健康
B29: 4.综合保障
B30: 六、乡村治理和精神文明建设
B31: 1.乡村治理
B32: 2.农村精神文明建设
B33: 七、项目管理费
B34: 八、其他
B35: 1.少数民族特色村寨建设项
B36: 2.困难群众饮用低氟茶
B37: ……

Sheet 岳阳县2026年度巩固拓展脱贫攻坚成果和乡村振兴项目库入库项目
A1: 岳阳县2026年度巩固拓展脱贫攻坚成果和乡村振兴项目库入库项目明细表
A2: 单位： (盖章 )
A3: 序号 | B3: 项目类别 | E3: 乡 | F3: 村 | G3: 项目名称 | H3: 建设性质 | I3: 实施地点 | J3: 时间进度 | L3: 责任 单位 | M3: 建设内容及规模 | N3: 资金规模和筹资方式 | Q3: 受益对象 | W3: 绩效目标 | X3: 联农带农机制
B4: 项目类型 | C4: 二级项目类型 | D4: 项目子类型 | J4: 计划开工时间 | K4: 计划完工时间 | N4: 项目预算总投资( 万 元 ) | O4: 其中 | Q4: 受益村数(个) | R4: 受益户数(户 ) | S4: 受益人口数 (人) | T4: 其中
O5: 财政资金 ( 万 元 ) | P5: 其他资金 ( 万 元 ) | T5: 受益脱贫村数(个) | U5: 受益脱贫户数及防 止返贫监 测对象户 数 (户 ) | V5: 受益脱贫人口数及防止返贫监测对象人口数
A6: 1 | B6: 就业项目 | C6: 公益性岗位 | D6: 公益性岗位 | E6: 岳阳县 | F6: 岳阳县 | G6: 岳阳县公益性岗位补贴 | H6: 续建 | I6: 岳阳县 | J6: 2026.02 | K6: 2026.12.30 | L6: 岳阳县农业农村局 | M6: 对符合条件的脱贫人口和监测户提供公益性岗位，发放岗位补贴 | N6: 900 | O6: 900 | Q6: 192 | R6: 800 | S6: 1000 | T6: 46 | U6: 800 | V6: 1000 | W6: 提高脱贫户、监测户收入 | X6: 促进就近就业，对就业困难的农户收入有一定的保障
A7: 2 | B7: 巩固三保障成果 | C7: 教育 | D7: 享受“雨露计划”职业教育补助 | E7: 岳阳县 | F7: 岳阳县 | G7: 岳阳县雨露计划 | H7: 续建 | I7: 岳阳县 | J7: 2026.03 | K7: 2026.12.30 | L7: 岳阳县农业农村局 | M7: 对岳阳县具有正式学籍的中职、高职在读建档立卡学生通过正常程序申报后符合条件的均可获得助学补助1500元/人·学期 | N7: 280 | O7: 280 | Q7: 192 | R7: 1500 | S7: 1600 | T7: 46 | U7: 1500 | V7: 1600 | W7: 减少脱贫户、监测户农户教育成本 | X7: 提高农户综合素质，技能水平，增加就业、创业能力
A8: 3 | B8: 就业项目 | C8: 务工补助 | D8: 交通费补助 | E8: 岳阳县 | F8: 岳阳县 | G8: 岳阳县交通费一次性补助 | H8: 续建 | I8: 岳阳县 | J8: 2026.01 | K8: 2026.12.30 | L8: 岳阳县农业农村局 | M8: 给去外地的务工人员报销车费或者补助，调动务工人员积极性 | N8: 180 | O8: 180 | Q8: 192 | R8: 1650 | S8: 4800 | T8: 46 | U8: 1650 | V8: 4800 | W8: 给去外地的务工人员报销车费或者补助，调动务工人员积极性 | X8: 给去外地的务工人员报销车费或者补助，调动务工人员积极性
A9: 4 | B9: 产业发展 | C9: 金融保险配套项目 | D9: 小额信贷贴息 | E9: 岳阳县 | F9: 岳阳县 | G9: 岳阳县小额信贷贴息 | H9: 续建 | I9: 岳阳县 | J9: 2026.01 | K9: 2026.12.30 | L9: 岳阳县农业农村局 | M9: 解决监测户贷款难、融资难的问题 | N9: 180 | O9: 180 | Q9: 192 | R9: 950 | S9: 1000 | T9: 46 | U9: 950 | V9: 1000 | W9: 帮助监测户发展产业项目 | X9: 帮助监测户发展产业项目
A10: 5 | B10: 就业项目 | C10: 就业 | D10: 帮扶车间（特色手工基地）建设 | E10: 岳阳县 | F10: 岳阳县 | G10: 乡村车间稳岗补贴 | H10: 续建 | I10: 岳阳县 | J10: 2026.01 | K10: 2026.12.30 | L10: 岳阳县农业农村局 | M10: 对全县29家帮扶车间雇佣脱贫户、监测户务工，带动脱贫户、监测户就业给予帮扶车间一定的补贴 | N10: 50 | O10: 50 | Q10: 192 | R10: 126 | S10: 206 | T10: 46 | U10: 126 | V10: 206 | W10: 调动帮扶车间雇佣脱贫户、监测户的积极性，增加脱贫户、监测户收入 | X10: 增加脱贫户、监测户务工机会
A11: 6 | B11: 产业发展 | C11: 配套基础设施项目 | D11: 产业园 | E11: 岳阳县 | F11: 岳阳县 | G11: 岳阳县巩固脱贫攻坚成果示范园项目 | H11: 新建 | I11: 岳阳县 | J11: 2026.01 | K11: 2026.12.30 | L11: 岳阳县农业农村局 | M11: 流转土地3000亩，建立示范园区 | N11: 4906.45 | O11: 3000 | P11: 1906.45 | Q11: 192 | R11: 15000 | S11: 15000 | T11: 46 | U11: 1500 | V11: 1600 | W11: 促进传统农业向现代农业转型发展 | X11: 带动脱贫户监测户就业
A12: 7 | B12: 产业发展 | C12: 金融保险配套项目 | D12: 新型经营主体贷款贴息 | E12: 岳阳县 | F12: 岳阳县 | G12: 新型农业经营主体贷款贴息 | H12: 续建 | I12: 岳阳县 | J12: 2026.01 | K12: 2026.12 | L12: 岳阳县农业农村局 | M12: 针对满足条件的新型经营主体因农业生产经营需要、从商业银行或银保监会批准从事支农融资业务的保险公司取得的贷款的已支付利息，经主体自主申报后，按省财政贷款贴息政策进行补贴 | N12: 800 | O12: 800 | Q12: 192 | R12: 4500 | S12: 9000 | T12: 46 | U12: 1500 | V12: 3000 | W12: 减轻新型农业经营主体融资成本负担，可持续性促进产业发展 | X12: 减轻新型农业经营主体融资成本负担的同时带动农户就业务工
A13: 8 | B13: 产业发展 | C13: 生产项目 | D13: 种植业基地 | E13: 岳阳县 | F13: 岳阳县 | G13: 2026年度巩固拓展产业成果“百千万”工程 | H13: 续建 | I13: 15个乡镇 | J13: 2026.03 | K13: 2026.12 | L13: 岳阳县农业农村局 | M13: 确定产业发展布局，引导新型农业经营主体联结有条件的村发展产业 | N13: 150 | O13: 150 | Q13: 60 | R13: 3000 | T13: 60 | U13: 3000 | W13: 充分发挥企业在市场、就业、技术、资金和结对帮扶村在资源、劳力等方面的优势，在村企协商一致的基础上，共同制定产业发展形式和内容，引导企业与结对村发展“一村一品”，确保农民种出来、养出来的产品能够全部为龙头企业、市场接纳消化，增强帮扶村造血功能，确保监测户、脱贫户稳定增产增收，农村产业持续发展。 | X13: 带动产业发展
A14: 9 | B14: 乡村建设行动 | C14: 农村基础设施 | D14: 其他 | E14: 长湖乡 | F14: 范家村 | G14: 范家村省级和美湘村建设 | H14: 续建 | I14: 村域内 | J14: 2026.01 | K14: 2026.12.30 | L14: 范家村村民委员会 | M14: 1.开展4个美丽屋场建设 2.开展基础设施升级改造 3.开展人居环境整治提质建设 4.发展产业发展庭院经济。 | N14: 100 | O14: 100 | Q14: 1 | R14: 1030 | S14: 4127 | T14: 0 | U14: 44 | V14: 104 | W14: 全面提升村庄基础设施与农村人居环境，提升村民满意度 | X14: 在项目实施的过程中，带动就业，发展产业，提高农户收入
A15: 10 | B15: 产业发展 | C15: 生产项目 | D15: 种植业基地 | E15: 5个乡镇 | F15: 5个村 | G15: 岳阳县高质量庭院经济项目 | H15: 新建 | I15: 5个村 | J15: 2026.01 | K15: 2026.12.30 | L15: 岳阳县农业农村局 | M15: 种植特色产业、利用农户房前屋后自留地发展产业 | N15: 100 | O15: 100 | Q15: 5 | R15: 1000 | S15: 3000 | T15: 5 | U15: 320 | V15: 960 | W15: 促进农户稳定增收 | X15: 带动生产
A16: 11 | B16: 产业发展 | C16: 生产项目 | D16: 种植业基地 | E16: 15个乡镇 | F16: 15个乡镇 | G16: 岳阳县“四个一批”盘活、调整类帮扶项目经费 | H16: 续建 | I16: 15个乡镇 | J16: 2026.01 | K16: 2026.12.30 | L16: 岳阳县农业农村局 | M16: 对岳阳县“四个一批”盘活、调整类帮扶项目进行产业帮扶 | N16: 300 | O16: 300 | Q16: 192 | R16: 4500 | S16: 9000 | T16: 46 | U16: 1500 | V16: 3000 | W16: 巩固产业发展、促进乡村振兴经济 | X16: 在项目实施的过程中，带动就业，发展产业，提高农户收入
A17: 12 | B17: 产业发展 | C17: 配套基础设施项目 | D17: 产业园 | E17: 3个乡镇 | F17: 3个乡镇 | G17: 中央专项彩票公益金支持革命老区乡村振兴项目 | H17: 新建 | I17: 3个乡镇 | J17: 2026.01 | K17: 2026.12.30 | L17: 岳阳县农业农村局 | M17: 以月田、毛田、公田3个乡镇为主，建设产业发展和乡村振兴项目 | N17: 5000 | O17: 5000 | Q17: 46 | R17: 5000 | S17: 8000 | T17: 24 | U17: 2128 | V17: 6642 | W17: 以项目实施促进革命老区加快乡村产业发展，提升乡村建设水平 | X17: 在项目实施的过程中，发展集体经济，带动就业，发展产业，提高农户收入
A18: 13 | B18: 产业发展 | C18: 生产项目 | D18: 种植业基地 | E18: 岳阳县大云山国有林场 | F18: 一分场 | G18: 岳阳县大云山国有林场2026年欠发达国有林场产业发展项目 | H18: 新建 | I18: 岳阳县大云山国有林场一分场 | J18: 2026-01-01 | K18: 2026-12-01 | L18: 岳阳县大云山国有林场 | M18: 新建种苗基地10亩培育树种银杏、枫香、鹅掌楸、木荷，建设灌溉系统. | N18: 65 | O18: 60 | P18: 5 | Q18: 1 | R18: 30 | S18: 150 | W18: 增加农户收入，每户增加10000元。 | X18: 带动务工就业，增加收入
A19: 14 | B19: 乡村建设行动 | C19: 农村基础设施 | D19: 农村道路建设 （通村、通户路） | E19: 柏祥镇 | F19: 柏祥村 | G19: 柏祥村明淑片许下组生产道路拓宽硬化建设 | H19: 改建 | I19: 柏祥村 | J19: 2026-01-01 | K19: 2026-12-01 | L19: 柏祥村 | M19: 该段道路全长约980米，计划拓宽路基6.5米，硬化道路宽度为5.5米，厚度为200mm厘米，预埋过路涵、硬化道路路肩培土等 | N19: 36 | O19: 26 | P19: 10 | Q19: 1 | R19: 65 | S19: 266 | T19: — | U19: 5 | V19: 16 | W19: 保障道路交通安全促进农业发展生产增收 | X19: 保障道路交通安全，改善村民出行安全，提高村民生活质量，提高周边农户的农业生产积极性，促进农业生产增收
A20: 15 | B20: 乡村建设行动 | C20: 农村基础设施 | D20: 农村道路建设 （通村、通户路） | E20: 柏祥镇 | F20: 十步桥村 | G20: 十步桥村松岭片咀上组门口塘清淤护砌 | H20: 改建 | I20: 十步桥村 | J20: 2026-01-01 | K20: 2026-12-01 | L20: 十步桥村 | M20: 门前大塘清淤护砌硬化 | N20: 20 | O20: 15 | P20: 5 | Q20: 1 | R20: 87 | S20: 369 | T20: 1 | U20: 10 | V20: 32 | W20: 改善水利条件，方便群众生产、水利灌溉促进生活生产 | X20: 群众筹资筹劳参与水利基础设施建设，保障生活生产。
A21: 16 | B21: 产业发展 | C21: 生产项目 | D21: 种植业基地 | E21: 柏祥镇 | F21: 十步桥村 | G21: 松岭片东头坡金盆柚种植基地 | H21: 新建 | I21: 松岭片东头坡 | J21: 2026-01-01 | K21: 2026-08-01 | L21: 十步桥村 | M21: 60亩金盆柚种植基地，定植优质苗木1800株；配套智能化灌溉、田间路网、仓储保鲜及采后处理设施，建设技术服务站，打造“种植-管护-施肥-采收-初加工”一体化产业格局 | N21: 30 | O21: 20 | P21: 10 | Q21: 1 | R21: 60 | S21: 204 | T21: 1 | U21: 5 | V21: 16 | W21: 建成60亩标准化金盆柚种植基地，完善配套设施，培育乡村特色产业；带动当地村民就业增收，提升农户种植技能，壮大村集体经济；打造乡村特色水果种植样板，助力拓宽乡村产业增收渠道，推动乡村产业提质 | X21: 优先吸纳当地村民参与基地栽种、管护、施肥、采收等工作，提供稳定务工岗位；开展金盆柚种植技术培训，提升农户种植水平，助力自主创业；拓宽村民增收渠道，壮大村集体经济
A22: 17 | B22: 乡村建设行动 | C22: 农村基础设施 | D22: 农村道路建设 （通村、通户路） | E22: 柏祥镇 | F22: 万庆村 | G22: 万庆村周庆片羊角组生产道路拓宽硬化建设 | H22: 改建 | I22: 万庆村 | J22: 2026-01-01 | K22: 2026-12-01 | L22: 万庆村 | M22: 该段道路全长约980米，计划拓宽路基5.5米，硬化道路宽度为3.5米，厚度为200mm厘米，预埋过路涵2处共计9米，硬化道路后路肩培土等 | N22: 36 | O22: 26 | P22: 10 | Q22: 1 | R22: 125 | S22: 412 | T22: 1 | U22: 10 | V22: 32 | W22: 保障道路交通安全促进农业发展生产增收 | X22: 保障道路交通安全促进该项目建设完成后将有效完善村级交通安全，改善村民出行安全，为了提高村民生活质量，创造美好生活环境，提高周边农户的农业生产积极性，带动经济发展，发展农业生产增收。
A23: 18 | B23: 产业发展 | C23: 生产项目 | D23: 种植业基地 | E23: 柏祥镇 | F23: 万庆村 | G23: 蒋渭片集体林场金盆柚种植基地 | H23: 新建 | I23: 蒋渭片集体林场 | J23: 2026-01-01 | K23: 2026-08-01 | L23: 万庆村 | M23: 200亩金盆柚种植基地，定植优质苗木6000株；配套智能化灌溉、田间路网、仓储保鲜及采后处理设施，建设技术服务站，打造“种植-管护-施肥-采收-初加工”一体化产业格局 | N23: 42 | O23: 28 | P23: 14 | Q23: 1 | R23: 60 | S23: 204 | T23: 1 | U23: 5 | V23: 28 | W23: 建成200亩标准化金盆柚种植基地，完善配套设施，培育乡村特色产业；带动当地村民就业增收，提升农户种植技能，壮大村集体经济；打造乡村特色水果种植样板，助力拓宽乡村产业增收渠道，推动乡村产业提质 | X23: 优先吸纳当地村民参与基地栽种、管护、施肥、采收等工作，提供稳定务工岗位；开展金盆柚种植技术培训，提升农户种植水平，助力自主创业；拓宽村民增收渠道，壮大村集体经济
A24: 19 | B24: 产业发展 | C24: 生产项目 | D24: 种植业基地 | E24: 柏祥镇 | F24: 中村村 | G24: 油茶种植 | H24: 扩建 | I24: 兴冲组 | J24: 2026.1 | K24: 2026.12 | L24: 中村村 | M24: 120亩 | N24: 20 | O24: 12 | P24: 8 | Q24: 1 | R24: 160 | S24: 450 | T24: 1 | U24: 5 | V24: 18 | W24: 帮助脱贫户监测户及周边群众增产 | X24: 带动本村脱贫户、周边农户发展产业，增加农户收入，促进乡村振兴。
A25: 20 | B25: 乡村建设行动 | C25: 农村基础设施 | D25: 农村道路建设 （通村、通户路） | E25: 柏祥镇 | F25: 中村村 | G25: 正堂横堂组道路硬化 | H25: 新建 | I25: 正堂横堂组 | J25: 2026.1 | K25: 2026.12 | L25: 中村村 | M25: 1600平方 | N25: 21 | O25: 14 | P25: 7 | Q25: 1 | R25: 60 | S25: 320 | T25: 1 | U25: 6 | V25: 24 | W25: 村民筹劳筹资，完善基础设施，保障道路交通安全。 | X25: 保障道路交通安全，改善村民出行安全，为了提高村民生活质量，创造美好生活环境，提高周边农户的农业生产积极性，带动经济发展，发展农业生产增收。
A26: 21 | B26: 产业发展 | C26: 配套基础设施项目 | D26: 小型农田水利设施建设 | E26: 柏祥镇 | F26: 中村村 | G26: 水渠清污及硬化 | H26: 维修 | I26: 上边组至大屋 | J26: 2026.1 | K26: 2026.12 | L26: 中村村 | M26: 2000米 | N26: 30 | O26: 20 | P26: 10 | Q26: 1 | R26: 90 | S26: 360 | T26: 1 | U26: 6 | V26: 24 | W26: 通过维修渠道 ，提升灌溉效率，增加灌溉面积。 | X26: 通过维修渠道，提升农田灌溉灌效率，促进村民增产增收。
A27: 22 | B27: 产业发展 | C27: 配套基础设施项目 | D27: 小型农田水利设施建设 | E27: 柏祥镇 | F27: 伏太村 | G27: 大荆塘机阜建设 | H27: 新建 | I27: 伏太村大窑片大荆组 | J27: 2026.1 | K27: 2026.12 | L27: 伏太村村委会 | M27: 架设机阜一台 | N27: 15 | O27: 12 | P27: 3 | Q27: 1 | R27: 66 | S27: 220 | T27: 1 | U27: 8 | V27: 36 | W27: 改善了山塘灌溉能力，激活当地经济发展 | X27: 为带农致富打下基础
A28: 23 | B28: 产业发展 | C28: 配套基础设施项目 | D28: 小型农田水利设施建设 | E28: 柏祥镇 | F28: 临港村 | G28: 下刘家山塘维修项目工程 | H28: 维修护砌 | I28: 临港村大湖片黄陵组 | J28: 2026年1月 | K28: 2026年12月 | L28: 柏祥镇临港村 | M28: 1、下刘山塘面积约8.6亩，清理山塘内0.8m深的淤泥约4580m³，并清运到2公里外的对前面山上；2、山塘塘提长48m高2.5m宽3m做好塘提的护坡；3、建设使用踏步，4、山塘排水底口更换； | N28: 18 | O28: 16 | P28: 2 | Q28: 1 | R28: 24 | S28: 92 | T28: 1 | U28: 2 | V28: 8 | W28: 有利春耕生产、改善环境，有效提高农业生产，激活当地经济发展 | X28: 有效提高农业生产，农民致富打下基础
A29: 24 | B29: 产业发展 | C29: 配套基础设施项目 | D29: 小型农田水利设施建设 | E29: 柏祥镇 | F29: 临港村 | G29: 骂木山塘维修项目工程 | H29: 维修护砌 | I29: 临港村大湖片庙山组 | J29: 2026年1月 | K29: 2026年12月 | L29: 柏祥镇临港村 | M29: 1、骂木山塘面积约6.7亩，清理山塘内0.8m深的淤泥约3569m³，并清运到2公里外的山上；2、山塘塘提长35m高3.5m宽4m做好塘提的护坡；3、建设使用踏步，4、山塘排水底口更换； | N29: 15.5 | O29: 12 | P29: 3.5 | Q29: 1 | R29: 21 | S29: 84 | T29: 1 | U29: 1 | V29: 5 | W29: 有利春耕生产、改善环境，有效提高农业生产，激活当地经济发展 | X29: 有效提高农业生产，农民致富打下基础
A30: 25 | B30: 产业发展 | C30: 生产项目 | D30: 种植业基地 | E30: 柏祥镇 | F30: 桑园村 | G30: 桑园村桑树种植基地 | H30: 续建 | I30: 桑园村 | J30: 2026年1月 | K30: 2026年12月 | L30: 桑园村 | M30: 该项目基地总200亩，计划树苗施肥，基地除草，后期人工管理培苗。 | N30: 8 | O30: 6 | P30: 2 | Q30: 1 | R30: 23 | S30: 118 | T30: 1 | U30: 10 | V30: 39 | W30: 建成200亩标准桑树桑果种植基地完善配套设施；带动村民就业增收，壮大村集体经济，助力拓宽农村产业增收渠道，推动农村产业提质 | X30: 优先吸纳当地村民参与栽种、管护、施肥、采收等工作，提供稳定务工岗位，拓宽村民增收渠道，壮大村集体经济。
A31: 26 | B31: 乡村建设行动 | C31: 农村基础设施 | D31: 农村道路建设 （通村、通户路） | E31: 柏祥镇 | F31: 桑园村 | G31: 桑园村四支片文庙线道路拓宽硬化建设 | H31: 改建 | I31: 桑园村 | J31: 2026年1月 | K31: 2026年12月 | L31: 桑园村 | M31: 该路段全长4.3公里，计划路基拓宽3米，硬化2.5米，厚度为200mm,预埋过路涵3处共49米，硬化道路后路肩培土等 | N31: 135 | O31: 100 | P31: 35 | Q31: 1 | R31: 180 | S31: 900 | T31: 1 | U31: 46 | V31: 200 | W31: 保障道路安全促进农业发展生产增收 | X31: 保障道路交通安全，促进该项目建设完成后将有效完善村级交通安全，改善村民出行安全，为提高村民生活质量，创建美好生活环境，带动经济发展，农业发展生产增收。
A32: 27 | B32: 产业发展 | C32: 配套基础设施项目 | D32: 小型农田水利设施建设 | E32: 柏祥镇 | F32: 桑园村 | G32: 桑园村俄咀片订善机埠水渠扩建 | H32: 改建 | I32: 桑园村 | J32: 2026年1月 | K32: 2026年12月 | L32: 桑园村 | M32: 该项目水渠从青山坳到天龙水库全长5200米，渠道降低开挖、硬化 | N32: 210 | O32: 160 | P32: 50 | Q32: 1 | R32: 700 | S32: 2600 | T32: 1 | U32: 65 | V32: 267 | W32: 保障水渠灌溉畅通，促进农业发展生产，增产增收。 | X32: 水渠扩建保障农田灌溉，降低农业生产成本，吸引种植大户、合作社集中流转土地，推动农业生产效率提升，助力稻谷规模化种植。
A33: 28 | B33: 产业发展 | C33: 配套基础设施项目 | D33: 小型农田水利设施建设 | E33: 柏祥镇 | F33: 七一村 | G33: 七一村桂林南塘大塘清淤 | H33: 清淤扩容 | I33: 七一村桂林片南塘组 | J33: 2026年1月 | K33: 2026年12月 | L33: 柏祥镇七一村 | M33: 1、南塘大塘面积约11.4亩，清理山塘内1.5m深的淤泥约113886m³，并清运到2公里外的对前面山上；2、山塘塘提长68m高6m宽3.5m做好塘提的护坡；3、建设使用踏步，4、山塘排水底口更换； | N33: 30 | O33: 15 | P33: 15 | Q33: 1 | R33: 33 | S33: 136 | T33: 1 | U33: 4 | V33: 10 | W33: 有利春耕生产、改善环境，有效提高农业生产，激活当地经济发展 | X33: 有效提高农业生产，农民致富打下基础
A34: 29 | B34: 乡村建设行动 | C34: 农村基础设施 | D34: 农村道路建设 （通村、通户路） | E34: 柏祥镇 | F34: 七一村 | G34: 七一村文付片港堤路拓宽硬化 | H34: 新建 | I34: 七一村港堤路 | J34: 2026年1月 | K34: 2026年12月 | L34: 柏祥镇七一村 | M34: 港堤路长2.8公里，拓宽3米，硬化6.5米 | N34: 95 | O34: 90 | P34: 5 | Q34: 1 | R34: 127 | S34: 489 | T34: 1 | U34: 11 | V34: 36 | W34: 有利于交通畅通，避免交通堵塞 | X34: 有效提高农业生产，农民致富打下基础
A35: 30 | B35: 产业发展 | C35: 生产项目 | D35: 种植业基地 | E35: 柏祥镇 | F35: 七一村 | G35: 七一村窑岭片 | H35: 新建 | I35: 七一村窑岭片 | J35: 2026年1月 | K35: 2026年12月 | L35: 柏祥镇七一村 | M35: 金盆柚种植100亩 | N35: 50 | O35: 38 | P35: 2 | Q35: 1 | R35: 1078 | S35: 4215 | T35: 1 | U35: 50 | V35: 135 | W35: 提供部分就业劳动力，增加收入效益 | X35: 有效提高农业生产，农民致富打下基础
A36: 31 | B36: 就业项目 | C36: 务工补助 | D36: 生产奖补、务工奖补 | E36: 柏祥镇 | F36: 全镇 | G36: 柏祥镇2026年产业奖补 | H36: 产业奖补 | I36: 到户项目 | J36: 2026年1月 | K36: 2026年12月 | L36: 柏祥镇 | M36: 产业奖补资金 | N36: 40 | O36: 40 | P36: 0 | Q36: 9 | R36: 365 | S36: 1175 | T36: 1 | U36: 365 | V36: 1175 | W36: 激发脱贫人口内生动力，促进产业发展增收致富 | X36: 通过资金奖补、产业帮扶等手段，帮助和鼓励其发展种养殖业
A37: 32 | B37: 乡村建设行动 | C37: 农村基础设施 | D37: 农村道路建设 （通村、通户路） | E37: 公田镇 | F37: 大塅村 | G37: 道路拓宽硬化 | H37: 改扩建 | I37: 小湄片洞组 | J37: 2026.06 | K37: 2026.12 | L37: 大塅村 | M37: 100米道路拓宽至3.5米后硬化 | N37: 5 | O37: 5 | Q37: 1 | R37: 12 | S37: 34 | U37: 1 | V37: 4 | W37: 1、保障群众出行安全 2、改善生产生活条件 3、建设期间提供贫困户就业机会 | X37: 本项目受益群众12户其中脱贫户数及防止返贫监测对象户数1户，脱贫人口数及防止返贫监测对象人口数4人，通过道路拓宽硬化，改善群众出行条件及建设期间提供劳务
A38: 33 | B38: 产业发展 | C38: 配套基础设施项目 | D38: 小型农田水利设施建设 | E38: 公田镇 | F38: 大塅村 | G38: 水沟护砌与维修 | H38: 改扩建 | I38: 板桥片 | J38: 2026.08 | K38: 2026.12 | L38: 大塅村 | M38: 300米水沟护砌与维修 | N38: 6 | O38: 6 | Q38: 1 | R38: 110 | S38: 230 | U38: 6 | V38: 17 | W38: 1、保障水系灌溉 2、改善生产生活条件 3、建设期间提供贫困户就业机会 | X38: 本项目受益群众110户其中脱贫户数及防止返贫监测对象户数6户，脱贫人口数及防止返贫监测对象人口数17人，通过水沟建设，改善水系灌溉的问题，及建设期间提供劳务
A39: 34 | B39: 产业发展 | C39: 生产项目 | D39: 种植业基地 | E39: 公田镇 | F39: 大塅村 | G39: 养生稻种植 | H39: 改建 | I39: 板桥片 | J39: 2026.05 | K39: 2026.10月 | L39: 大塅村 | M39: 扩大养生稻种植面积150亩 | N39: 10 | O39: 10 | Q39: 1 | R39: 62 | S39: 210 | U39: 6 | V39: 17 | W39: 1、保障群众家庭增收 2、改善生产生活条件 3、建设期间提供贫困户就业机会 | X39: 本项目受益群众15户其中脱贫户数及防止返贫监测对象户数6户，脱贫人口数及防止返贫监测对象人口数17人，通过扩大养生稻种植面积，改善群众生产生活条件及建设期间提供劳务
A40: 35 | B40: 产业发展 | C40: 生产项目 | D40: 种植业基地 | E40: 公田镇 | F40: 东新村 | G40: 黄土山金盆柚 | H40: 新建 | I40: 村部 | J40: 2026-02-01 | K40: 2026-07-01 | L40: 东新村 | M40: 种植20亩金盆柚 | N40: 15 | O40: 15 | Q40: 1 | R40: 46 | S40: 187 | U40: 5 | V40: 21 | W40: 新增产业就业岗位，带动种植户增收。 | X40: 受益群众46户，其中脱贫户数及防止返贫监测对象户数5户，脱贫人口数及防止返贫监测对象人口数21人，增加收入巩固脱贫成果。
A41: 36 | B41: 产业发展 | C41: 配套基础设施项目 | D41: 小型农田水利设施建设 | E41: 公田镇 | F41: 东新村 | G41: 元家组水渠 | H41: 新建 | I41: 元家组 | J41: 2026-02-01 | K41: 2026-06-01 | L41: 东新村 | M41: 新建1700米水渠 | N41: 23 | O41: 20 | P41: 3 | Q41: 1 | R41: 25 | S41: 112 | U41: 2 | V41: 5 | W41: 改善生态环境，增加农田灌溉面积，带动区域农业产值增加，减少灌溉用水浪费，降低农户灌溉成本 | X41: 受益群众25户，其中脱贫户数及防止返贫监测对象户数2户，脱贫人口数及防止返贫监测对象人口数5人，增加收入巩固脱贫成果。
A42: 37 | B42: 产业发展 | C42: 配套基础设施项目 | D42: 小型农田水利设施建设 | E42: 公田镇 | F42: 东新村 | G42: 董家组门口塘 | H42: 扩建 | I42: 董家组 | J42: 2026-03-01 | K42: 2026-06-01 | L42: 东新村 | M42: 扩容560立方米，护砌150米 | N42: 12 | O42: 12 | Q42: 1 | R42: 23 | S42: 93 | U42: 3 | V42: 8 | W42: 提升水塘调蓄能力，有效降低周边内涝风险，满足50亩农田灌溉，减少抗旱成本及周边村民生活应急用水需求。 | X42: 受益群众23户，其中脱贫户数及防止返贫监测对象户数3户，脱贫人口数及防止返贫监测对象人口数8人，增加收入巩固脱贫成果。
A43: 38 | B43: 乡村建设行动 | C43: 农村基础设施 | D43: 农村道路建设 （通村、通户路） | E43: 公田镇 | F43: 东新村 | G43: 西岸至村部道路拓宽护砌硬化 | H43: 扩建 | I43: 西岸组 | J43: 2026-02-01 | K43: 2026-06-01 | L43: 东新村 | M43: 500米道路拓宽护砌硬化 | N43: 38 | O43: 30 | P43: 8 | Q43: 1 | R43: 31 | S43: 124 | U43: 1 | V43: 4 | W43: 道路由原来3.5米拓宽至5米，满足日常通行需求；提升居民公共交通出行便利性，带动产业发展。 | X43: 受益群众31户，其中脱贫户数及防止返贫监测对象户数1户，脱贫人口数及防止返贫监测对象人口4人，增加收入巩固脱贫成果。
A44: 39 | B44: 产业发展 | C44: 配套基础设施项目 | D44: 小型农田水利设施建设 | E44: 公田镇 | F44: 飞云村 | G44: 尤冲组井安塘护砌清淤 | H44: 新建 | I44: 尤冲组 | J44: 2026-02-01 | K44: 2026-06-01 | L44: 飞云村 | M44: 2亩塘清淤护砌 | N44: 9 | O44: 9 | Q44: 1 | R44: 32 | S44: 138 | T44: 1 | U44: 3 | V44: 13 | W44: 提升水塘调蓄能力，满足32亩农田灌溉，减少抗旱成本及周边村民生活应急用水需求。 | X44: 受益群众32户，其中脱贫户数及防止返贫监测对象户数3户，脱贫人口数及防止返贫监测对象人口数13人，增加收入巩固脱贫成果。
A45: 40 | B45: 产业发展 | C45: 配套基础设施项目 | D45: 小型农田水利设施建设 | E45: 公田镇 | F45: 飞云村 | G45: 庙底组上塘护砌清污 | H45: 扩建 | I45: 庙底组 | J45: 2026-03-01 | K45: 2026-05-01 | L45: 飞云村 | M45: 1.5亩塘清淤护砌 | N45: 8 | O45: 8 | Q45: 1 | R45: 21 | S45: 83 | T45: 1 | U45: 2 | V45: 4 | W45: 提升水塘调蓄能力，满足18亩农田灌溉，减少抗旱成本及周边村民生活应急用水需求。 | X45: 受益群众21户，其中脱贫户数及防止返贫监测对象户数2户，脱贫人口数及防止返贫监测对象人口数4人，增加收入巩固脱贫成果。
A46: 41 | B46: 产业发展 | C46: 配套基础设施项目 | D46: 小型农田水利设施建设 | E46: 公田镇 | F46: 飞云村 | G46: 尹边组至坡内组水沟疏通护砌 | H46: 扩建 | I46: 尹边组至坡内组 | J46: 2026-03-01 | K46: 2026-07-01 | L46: 飞云村 | M46: 尹边组至坡内组1.8公里水沟疏通护砌 | N46: 30 | O46: 30 | Q46: 1 | R46: 62 | S46: 163 | T46: 1 | U46: 15 | V46: 42 | W46: 改善生态环境，增加农田灌溉面积，带动区域农业产值增加，减少灌溉用水浪费，降低农户灌溉成本。 | X46: 受益群众136户，其中脱贫户数及防止返贫监测对象户数15户，脱贫人口数及防止返贫监测对象人口数58人，增加收入巩固脱贫成果。
A47: 42 | B47: 产业发展 | C47: 配套基础设施项目 | D47: 小型农田水利设施建设 | E47: 公田镇 | F47: 飞云村 | G47: 冲口塘维修 | H47: 扩建 | J47: 2026-03-01 | K47: 2026-05-01 | L47: 飞云村 | M47: 1.5亩塘维修 | N47: 8 | O47: 8 | Q47: 1 | R47: 30 | S47: 116 | T47: 1 | U47: 3 | V47: 7 | W47: 提升水塘调蓄能力，满足50亩农田灌溉，减少抗旱成本及周边村民生活应急用水需求。 | X47: 受益群众41户，其中脱贫户数及防止返贫监测对象户数3户，脱贫人口数及防止返贫监测对象人口数7人，增加收入巩固脱贫成果。
A48: 43 | B48: 产业发展 | C48: 配套基础设施项目 | D48: 小型农田水利设施建设 | E48: 公田镇 | F48: 飞云村 | G48: 艾坡岭水库清污护砌 | H48: 扩建 | J48: 2026-04-01 | K48: 2026-08-01 | L48: 飞云村 | M48: 20亩水库清污护砌 | N48: 60 | O48: 30 | P48: 30 | Q48: 1 | R48: 32 | S48: 156 | T48: 1 | U48: 5 | V48: 13 | W48: 提升水塘调蓄能力，满足80亩农田灌溉，减少抗旱成本及周边村民生活应急用水需求。 | X48: 受益群众60户，其中脱贫户数及防止返贫监测对象户数5户，脱贫人口数及防止返贫监测对象人口数13人，增加收入巩固脱贫成果。
A49: 44 | B49: 产业发展 | C49: 配套基础设施项目 | D49: 小型农田水利设施建设 | E49: 公田镇 | F49: 飞云村 | G49: 北庄组门口塘清污及护砌 | H49: 扩建 | J49: 2026-03-01 | K49: 2026-05-01 | L49: 飞云村 | M49: 1.7亩塘清淤护砌 | N49: 8 | O49: 8 | Q49: 1 | R49: 5 | S49: 19 | T49: 1 | U49: 1 | V49: 3 | W49: 提升水塘调蓄能力，满足15亩农田灌溉，减少抗旱成本及周边村民生活应急用水需求。 | X49: 受益群众5户，其中脱贫户数及防止返贫监测对象户数1户，脱贫人口数及防止返贫监测对象人口数5人，增加收入巩固脱贫成果
A50: 45 | B50: 乡村建设行动 | C50: 农村基础设施 | D50: 农村道路建设 （通村、通户路） | E50: 公田镇 | F50: 飞云村 | G50: 尤冲组道路拓宽硬化 | H50: 扩建 | I50: 尤冲组 | J50: 2026-03-01 | K50: 2026-07-01 | L50: 飞云村 | M50: 0.6公里道路拓宽硬化 | N50: 36 | O50: 30 | P50: 6 | Q50: 1 | R50: 32 | S50: 138 | T50: 1 | U50: 3 | V50: 13 | W50: 道路由原来3.5米拓宽至5米，满足日常通行需求；提升居民公共交通出行便利性。 | X50: 受益群众32户，其中脱贫户数及防止返贫监测对象户数3户，脱贫人口数及防止返贫监测对象人口13人，增加收入巩固脱贫成果。
A51: 46 | B51: 乡村建设行动 | C51: 农村基础设施 | D51: 农村道路建设 （通村、通户路） | E51: 公田镇 | F51: 飞云村 | G51: 高塘组至东坡组公路硬化 | H51: 扩建 | I51: 高塘组至东坡组 | J51: 2026-03-01 | K51: 2026-07-01 | L51: 飞云村 | M51: 高塘组至东坡组公路硬化 | N51: 120 | O51: 50 | P51: 70 | Q51: 1 | R51: 53 | S51: 146 | T51: 1 | U51: 9 | V51: 29 | W51: 道路由原来3.5米拓宽至5米，满足日常通行需求；提升居民公共交通出行便利性。 | X51: 受益群众53户，其中脱贫户数及防止返贫监测对象户数9户，脱贫人口数及防止返贫监测对象人口数29人，增加收入巩固脱贫成果。
A52: 47 | B52: 乡村建设行动 | C52: 农村基础设施 | D52: 农村道路建设 （通村、通户路） | E52: 公田镇 | F52: 甘田村 | G52: 村级道路维修 | H52: 改扩建 | I52: 甘田村村级道路 | J52: 2026.3 | K52: 2026.11 | L52: 甘田村 | M52: 村级道路维修拓宽 | N52: 35 | O52: 30 | P52: 5 | Q52: 1 | R52: 815 | S52: 2617 | U52: 62 | V52: 156 | W52: 利于群众产业发展 | X52: 受益请群众815户其中脱贫户及防止返贫监测对象户数62户，脱贫人口数及防止返贫监测对象人口数156人，带动产业发展及农业生产增收，巩固脱贫成果。
A53: 48 | B53: 产业发展 | C53: 配套基础设施项目 | D53: 小型农田水利设施建设 | E53: 公田镇 | F53: 甘田村 | G53: 骨干山塘维修 | H53: 新建 | I53: 甘田村墈上组 | J53: 2026.3 | K53: 2026.4 | L53: 甘田村 | M53: 墈上组门前骨干山塘清污、护砌、低涵改造 | N53: 15 | O53: 15 | Q53: 1 | R53: 129 | S53: 348 | U53: 8 | V53: 23 | W53: 利于群众产业发展 | X53: 受益请群众129户其中脱贫户及防止返贫监测对象户数8户，脱贫人口数及防止返贫监测对象人口数23人，带动农业生产增收，巩固脱贫成果。
A54: 49 | B54: 产业发展 | C54: 配套基础设施项目 | D54: 小型农田水利设施建设 | E54: 公田镇 | F54: 港口村 | G54: 港口片水利设施维修（湾上组山塘清淤护砌、渠道维修、上屋、老屋组渠道维修） | H54: 改扩建 | I54: 港口片 | J54: 2026.11.6 | K54: 2026.11.30 | L54: 农业农村局 | M54: 湾上组大塘长28米，高3.5米，厚0.1米，湾上组渠道长度约265米，上屋组渠道约108米，老屋组渠道约156米。 | N54: 10.95 | O54: 10 | P54: 0.95 | Q54: 1 | R54: 165 | S54: 567 | T54: 1 | U54: 24 | V54: 84 | W54: 方便群众出行安全.利于群众产业发展 | X54: 受益群众165户,567人，其中脱贫户及防止返贫监测对象户数24户，脱贫人口数及防止返贫监测对象人口数84人，带动产业发展及农业生产增收，巩固脱贫成果。
A55: 50 | B55: 产业发展 | C55: 生产项目 | D55: 养殖业基地 | E55: 公田镇 | F55: 港口村 | G55: 三淼养殖有限公司 | H55: 续建 | I55: 三淼猪场 | J55: 202602 | K55: 20261231 | L55: 农业农村局 | M55: 跟三淼公司进行项目对接，实现入股经营进一步壮大集体经济 | N55: 34 | O55: 30 | P55: 4 | Q55: 1 | R55: 1056 | S55: 3570 | T55: 1 | U55: 64 | V55: 178 | W55: 利于群众产业发展 | X55: 受益请群众1056户，3670人其中脱贫户及防止返贫监测对象户数64户，脱贫人口数及防止返贫监测对象人口数178人，带动产业发展及农业生产增收，巩固脱贫成果。
A56: 51 | B56: 乡村建设行动 | C56: 农村基础设施 | D56: 农村道路建设 （通村、通户路） | E56: 公田镇 | F56: 港口村 | G56: 郭家组水利维修（重修机埠、管网预埋、渠道硬化） | H56: 改扩建 | I56: 郭家组 | J56: 202602 | K56: 202603 | L56: 农业农村局 | M56: 重修机埠1个，管网预埋约340余米，渠道硬化约152米。 | N56: 15.8 | O56: 15 | P56: 0.8 | Q56: 1 | R56: 22 | S56: 58 | T56: 1 | U56: 4 | V56: 14 | W56: 利于群众产业发展 | X56: 受益请群众22户，58人，其中脱贫户及防止返贫监测对象户数4户，脱贫人口数及防止返贫监测对象人口数14人，带动产业发展及农业生产增收，巩固脱贫成果。
A57: 52 | B57: 乡村建设行动 | C57: 农村基础设施 | D57: 农村道路建设 （通村、通户路） | E57: 公田镇 | F57: 港口村 | G57: 汪家组、戴家组公路维修 | H57: 改扩建 | I57: 港口村 | J57: 202602 | K57: 202612 | L57: 农业农村局 | M57: 羊城公路港口村戴家组塅路基沉降维修，长度约50余米，宽8米，整体开挖硬化铺油。 | N57: 8.5 | O57: 8 | P57: 0.5 | Q57: 1 | R57: 52 | S57: 112 | T57: 1 | U57: 8 | V57: 17 | W57: 利于群众产业发展 | X57: 受益请群众52户,112人，其中脱贫户及防止返贫监测对象户数8户，脱贫人口数及防止返贫监测对象人口数17人，带动产业发展及农业生产增收，巩固脱贫成果。
A58: 53 | B58: 产业发展 | C58: 生产项目 | D58: 种植业基地 | E58: 公田镇 | F58: 港口村 | G58: 香柚种植 | H58: 新建 | I58: 港口村 | J58: 202602 | K58: 202612 | L58: 农业农村局 | M58: 在港口村全村范围内种植香柚约100余亩，实现产业增收，壮大村集体经济 | N58: 30 | O58: 30 | Q58: 1 | R58: 1056 | S58: 3670 | T58: 1 | U58: 64 | V58: 178 | W58: 利于群众产业发展 | X58: 受益请群众1056户，3670人其中脱贫户及防止返贫监测对象户数64户，脱贫人口数及防止返贫监测对象人口数178人，带动产业发展及农业生产增收，巩固脱贫成果。
A59: 54 | B59: 产业发展 | C59: 加工流通项目 | D59: 产地初加工和精深加工 | E59: 公田镇 | F59: 东淇村 | G59: 岳阳东淇振兴 竹笋有限公司 | H59: 续建 | I59: 东淇村 | J59: 2026.3 | K59: 2026.12 | L59: 农业农村局 | M59: 现有2层房屋占地面积360平方米屋顶及房屋维修，扩大厂房5间 | N59: 5 | O59: 5 | Q59: 1 | R59: 638 | S59: 2460 | T59: 1 | U59: 41 | V59: 156 | W59: 扩大生产 | X59: 受益群众638户，其中脱贫户及防止返贫监测对象户数41户，脱贫人口数及防止返贫监测对象人口数156人，通过以工代赈，增加收入巩固脱盆成果。
A60: 55 | B60: 产业发展 | C60: 配套基础设施项目 | D60: 小型农田水利设施建设 | E60: 公田镇 | F60: 东淇村 | G60: 临河港农田砌墈、 农田灌溉堰坝5座、 狮形水库维修加固、 8个组山塘维修 | H60: 新建 | I60: 东淇村 | J60: 2026.3 | K60: 2026.12 | L60: 农业农村局 | M60: 临河港农田砌墈600米、 农田灌溉堰坝5座、 狮形水库维修加固、 8个组山塘维修 | N60: 15 | O60: 15 | Q60: 1 | R60: 238 | S60: 956 | T60: 1 | U60: 19 | V60: 68 | W60: 解决农田灌溉 | X60: 受益群众238户，其中脱贫户及防止返贫监测对象户数19户，脱贫人口数及防止返贫监测对象人口数68人，通过以工代赈，增加收入巩固脱盆成果。
A61: 56 | B61: 乡村建设行动 | C61: 农村基础设施 | D61: 农村道路建设 （通村、通户路） | E61: 公田镇 | F61: 东淇村 | G61: 龙山组、小洞组、上下组道路拓宽硬化 | H61: 新建 | I61: 东淇村 | J61: 2026.3 | K61: 2026.12 | L61: 农业农村局 | M61: 龙山组、小洞组、上下组道路拓宽硬化6公里 | N61: 20 | O61: 20 | Q61: 1 | R61: 63 | S61: 256 | T61: 1 | U61: 9 | V61: 27 | W61: 解决村民出行 | X61: 受益群众63户，其中脱贫户及防止返贫监测对象户数9户，脱贫人口数及防止返贫监测对象人口数27人，通过以工代赈，增加收入巩固脱盆成果。
A62: 57 | B62: 乡村建设行动 | C62: 农村基础设施 | D62: 农村道路建设 （通村、通户路） | E62: 公田镇 | F62: 公田居委会 | G62: 渠道维修 | H62: 改扩建 | I62: 井墈组 | J62: 2026.年5 | K62: 2026年11 | L62: 公田居委会 | M62: 渠道硬化220米。 | N62: 8 | O62: 8 | Q62: 1 | R62: 50 | S62: 234 | T62: 1 | U62: 6 | V62: 28 | W62: 改善群众农田灌溉，有利于产业发展,增产增收 | X62: 受益群众50户，234人，其中脱贫 户6户，28人，增加收入巩固脱贫成果
A63: 58 | B63: 乡村建设行动 | C63: 农村基础设施 | D63: 农村道路建设 （通村、通户路） | E63: 公田镇 | F63: 公田居委会 | G63: 山塘维修 | H63: 新建 | I63: 旁上组 | J63: 2026-03-01 | K63: 2026年12 | L63: 公田居委会 | M63: 山塘护砌200米，清污 | N63: 15 | O63: 15 | Q63: 1 | R63: 20 | S63: 68 | T63: 1 | U63: 3 | V63: 11 | W63: 改善群众农田灌溉，有利于产业发展,增产增收 | X63: 受益群众20户，68人，其中脱贫 户数及防 止返贫监 测对象户 数3户11人，增加收入巩固脱贫成果
A64: 59 | B64: 产业发展 | C64: 配套基础设施项目 | D64: 小型农田水利设施建设 | E64: 公田镇 | F64: 横铺村 | G64: 水渠护砌与维修 | H64: 改扩建 | I64: 石姑片 | J64: 2026.08 | K64: 2026.12 | L64: 横铺村 | M64: 3000米水渠护砌与维修 | N64: 50 | O64: 50 | Q64: 1 | R64: 2410 | S64: 540 | T64: 1 | U64: 10 | V64: 33 | W64: 1、保障水系灌溉 2、改善生产生活条件 3、建设期间提供贫困户就业机会 | X64: 本项目受益群众260户其中脱贫户数及防止返贫监测对象户数10户，脱贫人口数及防止返贫监测对象人口数33人，通过水渠建设，改善水系灌溉的问题，及建设期间提供劳务
A65: 60 | B65: 产业发展 | C65: 配套基础设施项目 | D65: 小型农田水利设施建设 | E65: 公田镇 | F65: 横铺村 | G65: 山塘维修 | H65: 改扩建 | I65: 横铺片 | J65: 2026.5.20 | K65: 2026.8.30 | L65: 横铺村 | M65: 铺上组山塘的塘内清淤、护砌维修 | N65: 4 | O65: 4 | Q65: 1 | R65: 31 | S65: 95 | T65: 1 | U65: 2 | V65: 3 | W65: 改善生态环境.解决农田水系灌溉问题，建设期间提供贫困户就业机会 | X65: 受益请群众31户其中脱贫户及防止返贫监测对象户数2户，脱贫人口数及防止返贫监测对象人口数3人，带动产业发展及农业生产增收，巩固脱贫成果。
A66: 61 | B66: 产业发展 | C66: 配套基础设施项目 | D66: 小型农田水利设施建设 | E66: 公田镇 | F66: 横铺村 | G66: 山塘维修 | H66: 改扩建 | I66: 横铺片 | J66: 2026.10.12 | K66: 2026.11.30 | L66: 横铺村 | M66: 铺兴组山塘的塘内清淤、护砌维修 | N66: 5 | O66: 5 | Q66: 1 | R66: 26 | S66: 104 | T66: 1 | U66: 0 | V66: 0 | W66: 改善生态环境.解决农田水系灌溉问题，建设期间提供贫困户就业机会 | X66: 受益请群众26户其中脱贫户及防止返贫监测对象户数0户，脱贫人口数及防止返贫监测对象人口数0人，带动产业发展及农业生产增收，巩固脱贫成果。
A67: 62 | B67: 乡村建设行动 | C67: 农村基础设施 | D67: 农村道路建设 （通村、通户路） | E67: 公田镇 | F67: 饶港村 | G67: 山田至沙坡道路拓宽硬化 | H67: 改扩建 | I67: 山田组、沙坡组 | J67: 2026.06 | K67: 2026.12 | L67: 饶港村 | M67: 500米道路拓宽至3.5米后硬化 | N67: 15 | O67: 15 | Q67: 1 | R67: 68 | S67: 215 | T67: 1 | U67: 5 | V67: 32 | W67: 1、保障群众出行安全 2、改善生产生活条件 3、建设期间提供贫困户就业机会 | X67: 本项目受益群众68户其中脱贫户数及防止返贫监测对象户数5户，脱贫人口数及防止返贫监测对象人口数32人，通过道路拓宽硬化，改善群众出行条件及建设期间提供劳务
A68: 63 | B68: 产业发展 | C68: 配套基础设施项目 | D68: 小型农田水利设施建设 | E68: 公田镇 | F68: 饶港村 | G68: 团结水库南北干渠护砌与维修 | H68: 改扩建 | I68: 山田片 | J68: 2026.08 | K68: 2026.12 | L68: 饶港村 | M68: 5000米渠道护砌与维修 | N68: 60 | O68: 50 | P68: 10 | Q68: 1 | R68: 265 | S68: 955 | T68: 1 | U68: 18 | V68: 56 | W68: 1、保障水系灌溉 2、改善生产生活条件 3、建设期间提供贫困户就业机会 | X68: 本项目受益群众265户其中脱贫户数及防止返贫监测对象户数18户，脱贫人口数及防止返贫监测对象人口数56人，通过水沟建设，改善水系灌溉的问题，及建设期间提供劳务
A69: 64 | B69: 产业发展 | C69: 配套基础设施项目 | D69: 小型农田水利设施建设 | E69: 公田镇 | F69: 饶港村 | G69: 中心片水轮泵蓄水塘水闸建设 | H69: 改扩建 | I69: 下石组 | J69: 2026.08 | K69: 2026.12 | L69: 饶港村 | M69: 水塘请淤、水闸建设 | N69: 6 | O69: 6 | Q69: 1 | R69: 68 | S69: 242 | T69: 1 | U69: 4 | V69: 17 | W69: 1、保障水系灌溉 2、改善生产生活条件 3、建设期间提供贫困户就业机会 | X69: 本项目受益群众68户其中脱贫户数及防止返贫监测对象户数4户，脱贫人口数及防止返贫监测对象人口数17人，通过水沟建设，改善水系灌溉的问题，及建设期间提供劳务
A70: 65 | B70: 产业发展 | C70: 配套基础设施项目 | D70: 小型农田水利设施建设 | E70: 公田镇 | F70: 饶港村 | G70: 邓家组农田灌溉用水机埠建设 | H70: 改扩建 | I70: 邓家组 | J70: 2026.08 | K70: 2026.12 | L70: 饶港村 | M70: 农田灌溉用水机埠建设 | N70: 4 | O70: 4 | Q70: 1 | R70: 110 | S70: 235 | T70: 1 | U70: 6 | V70: 17 | W70: 1、保障水系灌溉 2、改善生产生活条件 3、建设期间提供贫困户就业机会 | X70: 本项目受益群众110户其中脱贫户数及防止返贫监测对象户数6户，脱贫人口数及防止返贫监测对象人口数17人，通过水沟建设，改善水系灌溉的问题，及建设期间提供劳务
A71: 66 | B71: 产业发展 | C71: 配套基础设施项目 | D71: 小型农田水利设施建设 | E71: 公田镇 | F71: 饶港村 | G71: 新勘组灌渠U型槽建设 | H71: 改扩建 | I71: 新勘组 | J71: 2026.08 | K71: 2026.12 | L71: 饶港村 | M71: 400米水渠U型槽建设 | N71: 6 | O71: 6 | Q71: 1 | R71: 45 | S71: 136 | T71: 1 | U71: 2 | V71: 7 | W71: 1、保障水系灌溉 2、改善生产生活条件 3、建设期间提供贫困户就业机会 | X71: 本项目受益群众45户其中脱贫户数及防止返贫监测对象户数2户，脱贫人口数及防止返贫监测对象人口数7人，通过水沟建设，改善水系灌溉的问题，及建设期间提供劳务
A72: 67 | B72: 产业发展 | C72: 配套基础设施项目 | D72: 小型农田水利设施建设 | E72: 公田镇 | F72: 塘田村 | G72: 牛婆港排灌渠护砌 | H72: 护砌 | I72: 祯祥片 | J72: 2026.01 | K72: 2026-07-10 | L72: 塘田村 | M72: 护砌长400米，宽1.3米，高1.2米 | N72: 10 | O72: 10 | Q72: 1 | R72: 86 | S72: 336 | T72: 1 | U72: 5 | V72: 16 | W72: 改善群众农田灌溉，有利于产业发展,增产增收 | X72: 受益群众86户，336人，其中脱贫 户数及防 止返贫监 测对象5户 数户16人
A73: 68 | B73: 产业发展 | C73: 配套基础设施项目 | D73: 小型农田水利设施建设 | E73: 公田镇 | F73: 塘田村 | G73: 南西冲小港护砌维修 | H73: 护砌维修 | I73: 祯祥片 | J73: 2026-04-26 | K73: 2026-11-30 | L73: 塘田村 | M73: 护砌长700米，宽1.2米，高1.4米 | N73: 20 | O73: 20 | Q73: 1 | R73: 128 | S73: 512 | T73: 1 | U73: 11 | V73: 30 | W73: 改善群众农田灌溉，有利于产业发展,增产增收 | X73: 受益群众128户，512人，其中脱贫 户数及防 止返贫监 测对象户 数11户30人，增加收入巩固脱贫成果
A74: 69 | B74: 产业发展 | C74: 生产项目 | D74: 种植业基地 | E74: 公田镇 | F74: 铁山村 | G74: 林下黄精种植 | H74: 新建 | I74: 铁山村 | J74: 2026.03 | K74: 2026.12 | L74: 铁山村 | M74: 全村脱贫户监测户及其他有产业意向的农户林下黄精种产销 | N74: 30 | O74: 30 | Q74: 1 | R74: 150 | S74: 550 | T74: 1 | U74: 46 | V74: 151 | W74: 1、脱贫户及监测户增收 2、发展壮大村集体经济 | X74: 本项目受益群众150户，其中脱贫户数及防止返贫监测对象户数46户，脱贫人口数及防止返贫监测对象人口数151人，通过在铁山村实施林下黄精套种，为脱贫户及监测户实现增收及发展壮大村集体经济
A75: 70 | B75: 乡村建设行动 | C75: 农村基础设施 | D75: 农村道路建设 （通村、通户路） | E75: 公田镇 | F75: 铁山村 | G75: 中山组道路拓宽硬化 | H75: 新建 | I75: 栗山片中山组 | J75: 2026.07 | K75: 2026.12 | L75: 铁山村 | M75: 1000米道路拓宽至4.5米硬化 | N75: 25 | O75: 20 | P75: 5 | Q75: 1 | R75: 46 | S75: 172 | T75: 1 | U75: 9 | V75: 28 | W75: 1、保障群众出行安全 2、改善生产生活条件 3、建设期间提供贫困户就业机会 | X75: 本项目受益群众46户其中脱贫户数及防止返贫监测对象户数9户，脱贫人口数及防止返贫监测对象人口数28人，通过道路拓宽硬化，改善偏远地方交通不便的群众出行条件及建设期间提供劳务
A76: 71 | B76: 产业发展 | C76: 配套基础设施项目 | D76: 小型农田水利设施建设 | E76: 公田镇 | F76: 五龙桥村 | G76: 村主干道五龙桥至高爱用门口段护砌拓宽 | H76: 扩建 | I76: 斗口组 | J76: 2026.4.20 | K76: 2026.10.30 | L76: 五龙桥村 | M76: 道路护砌长300米.高1.9米.宽0.9米 | N76: 18 | O76: 18 | Q76: 1 | R76: 747 | S76: 2483 | T76: 0 | U76: 55 | V76: 156 | W76: 改善群众出行难问题.改善生产生活条件 | X76: 受益请群众747户其中脱贫户及防止返贫监测对象户数55户，脱贫人口数及防止返贫监测对象人口数156人，带动产业发展及农业生产增收，巩固脱贫成果。
A77: 72 | B77: 乡村建设行动 | C77: 农村基础设施 | D77: 农村道路建设 （通村、通户路） | E77: 公田镇 | F77: 五龙桥村 | G77: 村道上底段道路硬化 | H77: 扩建 | I77: 上底组 | J77: 2026.3.21 | K77: 2026.8.29 | L77: 五龙桥村 | M77: 道路硬化长330米.宽6米.厚0.2米 | N77: 20 | O77: 20 | Q77: 1 | R77: 23 | S77: 65 | T77: 0 | U77: 5 | V77: 18 | W77: 改善生产生活条件，提升群众幸福感 | X77: 受益请群众23户其中脱贫户及防止返贫监测对象户数5户，脱贫人口数及防止返贫监测对象人口数18人，带动产业发展及农业生产增收，巩固脱贫成果。
A78: 73 | B78: 产业发展 | C78: 配套基础设施项目 | D78: 小型农田水利设施建设 | E78: 公田镇 | F78: 五龙桥村 | G78: 大金组门口小塘维修 | H78: 扩建 | I78: 大金组 | J78: 2026.3.20 | K78: 2026.7.30 | L78: 五龙桥村 | M78: 塘内清淤800立方、护砌长20米.高2.5米.宽0.8米 | N78: 3 | O78: 3 | Q78: 1 | R78: 28 | S78: 102 | T78: 0 | U78: 4 | V78: 11 | W78: 改善生态环境.农田灌溉 | X78: 受益请群众28户其中脱贫户及防止返贫监测对象户数4户，脱贫人口数及防止返贫监测对象人口数11人，带动产业发展及农业生产增收，巩固脱贫成果。
A79: 74 | B79: 产业发展 | C79: 配套基础设施项目 | D79: 小型农田水利设施建设 | E79: 公田镇 | F79: 向佳村 | G79: 晏冲片上.下边组小港护砌 | H79: 新建 | I79: 晏冲片 | J79: 2026.5.15 | K79: 2026.7.25 | L79: 向佳村 | M79: 晏冲片上.下边组小港护砌.全长50米 | N79: 6 | O79: 6 | Q79: 1 | R79: 52 | S79: 172 | T79: 0 | U79: 3 | V79: 12 | W79: 方便群众出行安全.利于群众产业发展 | X79: 受益请群众户其中脱贫户及防止返贫监测对象户数3户，脱贫人口数及防止返贫监测对象人口数12人，带动产业发展及农业生产增收，巩固脱贫成果。
A80: 75 | B80: 乡村建设行动 | C80: 农村基础设施 | D80: 农村道路建设 （通村、通户路） | E80: 公田镇 | F80: 向佳村 | G80: 全福片凉亭组至细屋组道路拓宽硬化 | H80: 扩建 | I80: 全福片 | J80: 2026.6.16 | K80: 2026.9.30 | L80: 向佳村 | M80: 全福片1.5公里道路拓宽硬化 | N80: 30 | O80: 30 | Q80: 1 | R80: 310 | S80: 1069 | T80: 0 | U80: 16 | V80: 53 | W80: 方便群众出行安全.利于群众产业发展 | X80: 受益请群众310户其中脱贫户及防止返贫监测对象户数16户，脱贫人口数及防止返贫监测对象人口数53人，带动产业发展及农业生产增收，巩固脱贫成果。
A81: 76 | B81: 乡村建设行动 | C81: 农村基础设施 | D81: 农村道路建设 （通村、通户路） | E81: 公田镇 | F81: 长安村 | G81: 常青洞至邓家组渠道维修 | H81: 改扩建 | I81: 邓家组 | J81: 2026.5 | K81: 2026.9 | L81: 长安村 | M81: 渠道500米维修开挖疏通硬化 | N81: 15 | O81: 15 | Q81: 1 | R81: 72 | S81: 257 | T81: 0 | U81: 10 | V81: 37 | W81: 壮大村集体经济 | X81: 受益群众124户其中贫户数及防止返贫监测对象户数7户，脱贫人口数及防止返贫监测对象人口数42人，通过以工代赈，增加收入巩固脱贫成果
A82: 77 | B82: 产业发展 | C82: 生产项目 | D82: 种植业基地 | E82: 公田镇 | F82: 公田居委会 | G82: 七彩花生种植 | H82: 新建 | I82: 河东片 新屋组/老屋组 | J82: 2026年3 | K82: 2026年10 | L82: 公田居委会 | M82: 种植面积约28亩 | N82: 16 | O82: 16 | Q82: 1 | R82: 68 | S82: 219 | T82: 1 | U82: 5 | V82: 11 | W82: 发展壮大 集体经济 | X82: 受益群众68户， 219人，其中脱贫户数及防止返贫监测对象户数5户11人，增加收入巩固脱贫成果
A83: 78 | B83: 产业发展 | C83: 配套基础设施项目 | D83: 小型农田水利设施建设 | E83: 黄沙街镇 | F83: 茶场社区 | G83: 麻塘李沟渠硬化 | H83: 扩建 | I83: 拦河七组 | J83: 2026.10.10 | K83: 2026.12.30 | L83: 茶场社区 | M83: 麻塘李沟渠硬化长800米，宽50至80灌溉水田70亩 | N83: 15 | O83: 10 | P83: 5 | Q83: 1 | R83: 87 | S83: 300 | T83: 0 | U83: 2 | V83: 5 | W83: 保障农业生产需求 | X83: 就业务工
A84: 79 | B84: 产业发展 | C84: 配套基础设施项目 | D84: 小型农田水利设施建设 | E84: 黄沙街镇 | F84: 茶场社区 | G84: 新塘沟渠硬化 | H84: 扩建 | I84: 栏河 | J84: 2026.10.20 | K84: 2026.12.20 | L84: 茶场社区 | M84: 新塘沟渠硬化长400米宽50至80灌溉水田60亩 | N84: 15 | O84: 10 | P84: 5 | Q84: 1 | R84: 77 | S84: 268 | T84: 0 | U84: 1 | V84: 1 | W84: 保障农业生产需求 | X84: 就业务工
A85: 80 | B85: 产业发展 | C85: 配套基础设施项目 | D85: 小型农田水利设施建设 | E85: 黄沙街镇 | F85: 茶场社区 | G85: 杨母塘清淤和护坡 | H85: 扩建 | I85: 栏河一组 | J85: 2026.01 | K85: 2026.11 | L85: 茶场社区 | M85: 杨母塘清淤300方护坡5米宽70米长 | N85: 10 | O85: 8 | P85: 2 | Q85: 1 | R85: 45 | S85: 243 | T85: 0 | U85: 1 | V85: 1 | W85: 保障农业生产需求 | X85: 就业务工
A86: 81 | B86: 产业发展 | C86: 生产项目 | D86: 种植业基地 | E86: 黄沙街镇 | F86: 茶场社区 | G86: 金盆柚基地建设 | H86: 扩建 | I86: 栏河三组 | J86: 2026.01 | K86: 2026.02 | L86: 茶场社区 | M86: 栏河三组金盆柚基地建设80亩7500根 | N86: 20 | O86: 14 | P86: 6 | Q86: 1 | R86: 26 | S86: 131 | T86: 0 | U86: 1 | V86: 2 | W86: 带动生产 | X86: 就业务工
A87: 82 | B87: 产业发展 | C87: 配套基础设施项目 | D87: 小型农田水利设施建设 | E87: 黄沙街镇 | F87: 荷塘村 | G87: 大联魏家塘清淤维修工程 | H87: 扩建 | I87: 荷塘村大联片 | J87: 2026.09 | K87: 2026.10 | L87: 荷塘村村委会 | M87: 魏家塘清淤1200立方 | N87: 3 | O87: 3 | P87: 0 | Q87: 1 | R87: 182 | S87: 486 | T87: 0 | U87: 12 | V87: 48 | W87: 保障农业生产需求 | X87: 就业务工
A88: 83 | B88: 产业发展 | C88: 配套基础设施项目 | D88: 小型农田水利设施建设 | E88: 黄沙街镇 | F88: 荷塘村 | G88: 滨湖汉朝屋门前塘清淤维修工程 | H88: 扩建 | I88: 荷塘村滨湖片 | J88: 2026.09 | K88: 2026.10 | L88: 荷塘村村委会 | M88: 门前塘清淤900立方，大堤维修， 安装低涵12米 | N88: 2 | O88: 2 | P88: 0 | Q88: 1 | R88: 85 | S88: 256 | T88: 0 | U88: 8 | V88: 26 | W88: 保障农业生产需求 | X88: 就业务工
A89: 84 | B89: 乡村建设行动 | C89: 农村基础设施 | D89: 农村道路建设 （通村、通户路） | E89: 黄沙街镇 | F89: 荷塘村 | G89: 滨湖十四组机耕路硬化工程 | H89: 扩建 | I89: 荷塘村滨湖片 | J89: 2026.06 | K89: 2026.07 | L89: 荷塘村村委会 | M89: 160米长3米宽0.2米厚 | N89: 5 | O89: 5 | P89: 0 | Q89: 1 | R89: 60 | S89: 237 | T89: 0 | U89: 20 | V89: 62 | W89: 方便群众出行 | X89: 就业务工
A90: 85 | B90: 乡村建设行动 | C90: 农村基础设施 | D90: 产业路、资源路、旅游路建设 | E90: 黄沙街镇 | F90: 苍坪村 | G90: 庵龙水库至坪中二组道路新建 | H90: 新建 | I90: 坪桥片至坪中片二组 | J90: 2026.04 | K90: 2026.06 | L90: 苍坪村 | M90: 新建一条长2000米，宽4.5米的产业路 | N90: 50 | O90: 40 | P90: 10 | Q90: 1 | R90: 112 | S90: 448 | T90: 1 | U90: 10 | V90: 32 | W90: 保障农业生产需求 | X90: 就业务工
A91: 86 | B91: 乡村建设行动 | C91: 农村基础设施 | D91: 农村道路建设 （通村、通户路） | E91: 黄沙街镇 | F91: 苍坪村 | G91: 六合片主干道扩宽硬化 | H91: 扩建 | I91: 六合片 | J91: 2026.09 | K91: 2026.11 | L91: 苍坪村 | M91: 新建一条长3.5公里，宽6米主干道 | N91: 300 | O91: 200 | P91: 100 | Q91: 1 | R91: 500 | S91: 1500 | T91: 1 | U91: 10 | V91: 30 | W91: 保障出行需求 | X91: 就业务工
A92: 87 | B92: 乡村建设行动 | C92: 农村基础设施 | D92: 农村道路建设 （通村、通户路） | E92: 黄沙街镇 | F92: 苍坪村 | G92: 坪中片七组通组路硬化 | H92: 扩建 | I92: 坪中片7组 | J92: 2026.05 | K92: 2026.06 | L92: 苍坪村 | M92: 长300米，宽3.5米的入户路 | N92: 20 | O92: 15 | P92: 5 | Q92: 1 | R92: 25 | S92: 102 | T92: 1 | U92: 3 | V92: 10 | W92: 保障出行需求 | X92: 就业务工
A93: 88 | B93: 产业发展 | C93: 配套基础设施项目 | D93: 小型农田水利设施建设 | E93: 黄沙街镇 | F93: 苍坪村 | G93: 坪桥片9组塘边沟渠修缮硬化 | H93: 扩建 | I93: 坪桥片九组 | J93: 2026.10 | K93: 2026.11 | L93: 苍坪村 | M93: 长1500米沟渠清障，修缮硬化 | N93: 30 | O93: 20 | P93: 10 | Q93: 1 | R93: 123 | S93: 421 | T93: 0 | U93: 8 | V93: 24 | W93: 保障农业生产需求 | X93: 就业务工
A94: 89 | B94: 产业发展 | C94: 配套基础设施项目 | D94: 小型农田水利设施建设 | E94: 黄沙街镇 | F94: 大明村 | G94: 全村37个组山塘清淤维修 | H94: 扩建 | I94: 大明村 | J94: 2026.10 | K94: 2026.12 | L94: 大明村 | M94: 全村37个组山塘清淤维修 | N94: 20 | O94: 18 | P94: 2 | Q94: 1 | R94: 1415 | S94: 4552 | T94: 0 | U94: 64 | V94: 215 | W94: 保障农业生产需求 | X94: 就业务工
A95: 90 | B95: 产业发展 | C95: 生产项目 | D95: 种植业基地 | E95: 黄沙街镇 | F95: 大明村 | G95: 岳阳县盛鸿林木种植基地基础设施 | H95: 新建 | I95: 大明村 | J95: 2026.01 | K95: 2026.12 | L95: 大明村 | M95: 岳阳县盛鸿林木种植基地510亩基础设施建设 | N95: 38 | O95: 35 | P95: 3 | Q95: 1 | R95: 387 | S95: 1254 | T95: 1 | U95: 20 | V95: 70 | W95: 完善基地基础设施，开发就业岗位 | X95: 就业务工、带动生产
A96: 91 | B96: 产业发展 | C96: 生产项目 | D96: 种植业基地 | E96: 黄沙街镇 | F96: 复兴村 | G96: 桑葚基地种植 | H96: 新建 | I96: 复兴村 | J96: 2026.10 | K96: 2026.12 | L96: 复兴村 | M96: 150亩基地开挖栽树培育 | N96: 50 | O96: 30 | P96: 20 | Q96: 1 | R96: 858 | S96: 3478 | T96: 1 | U96: 42 | V96: 128 | W96: 带动周边群众就业 | X96: 带动生产
A97: 92 | B97: 乡村建设行动 | C97: 农村基础设施 | D97: 农村道路建设 （通村、通户路） | E97: 黄沙街镇 | F97: 复兴村 | G97: 农村道路建设船大路至高塘村部、 至杨源村部、至G240玉华段公路白加黑 | H97: 扩建 | I97: 复兴村 | J97: 2026.10 | K97: 2026.12 | L97: 复兴村 | M97: 船大路至高塘村部、至杨源村部、至G240玉华段公路总4.6公里白加黑 | N97: 100 | O97: 80 | P97: 20 | Q97: 1 | R97: 858 | S97: 3478 | T97: 1 | U97: 42 | V97: 128 | W97: 方便群众出行 | X97: 其他
A98: 93 | B98: 乡村建设行动 | C98: 农村基础设施 | D98: 农村道路建设 （通村、通户路） | E98: 黄沙街镇 | F98: 复兴村 | G98: 杨源七组至新天村，杨源六组至新天村道路硬化，高塘五组至火天连接硬化 | H98: 扩建 | I98: 复兴村 | J98: 2026.10 | K98: 2026.12 | L98: 复兴村 | M98: 1.8公里水泥硬化 | N98: 80 | O98: 60 | P98: 20 | Q98: 2 | R98: 859 | S98: 3479 | T98: 2 | U98: 43 | V98: 129 | W98: 方便群众出行 | X98: 其他
A99: 94 | B99: 乡村建设行动 | C99: 农村基础设施 | D99: 农村道路建设 （通村、通户路） | E99: 黄沙街镇 | F99: 复兴村 | G99: 村级公路维修 | H99: 扩建 | I99: 复兴村 | J99: 2026.10 | K99: 2026.12 | L99: 复兴村 | M99: 11公里公路维修 | N99: 20 | O99: 10 | P99: 10 | Q99: 3 | R99: 860 | S99: 3480 | T99: 3 | U99: 44 | V99: 130 | W99: 方便群众出行 | X99: 其他
A100: 95 | B100: 产业发展 | C100: 配套基础设施项目 | D100: 小型农田水利设施建设 | E100: 黄沙街镇 | F100: 黄沙村 | G100: 周冲三组门前塘清淤护砌 | H100: 扩建 | I100: 黄沙村 | J100: 2026.04 | K100: 2026.05 | L100: 黄沙村村委会 | M100: 周冲三组8亩门前塘整塘清淤转运500立方， 护坡200余米 | N100: 10 | O100: 8 | P100: 2 | Q100: 1 | R100: 102 | S100: 326 | T100: 0 | U100: 10 | V100: 32 | W100: 保障农业生产需求 | X100: 就业务工
A101: 96 | B101: 产业发展 | C101: 配套基础设施项目 | D101: 小型农田水利设施建设 | E101: 黄沙街镇 | F101: 黄沙村 | G101: 廖山片辽塘整塘清淤 | H101: 扩建 | I101: 黄沙村 | J101: 2026.04 | K101: 2026.05 | L101: 黄沙村村委会 | M101: 廖山片辽塘10余亩整塘清淤1000立方 | N101: 8 | O101: 6 | P101: 2 | Q101: 1 | R101: 128 | S101: 407 | T101: 0 | U101: 8 | V101: 26 | W101: 保障农业生产需求 | X101: 就业务工
A102: 97 | B102: 产业发展 | C102: 配套基础设施项目 | D102: 小型农田水利设施建设 | E102: 黄沙街镇 | F102: 黄沙村 | G102: 黄金片九如组渠道修建 | H102: 扩建 | I102: 黄沙村 | J102: 2026.05 | K102: 2026.06 | L102: 黄沙村村委会 | M102: 黄金片九如组长280米、宽1米、高0.8米渠道 清淤、平整、硬化 | N102: 15 | O102: 10 | P102: 5 | Q102: 1 | R102: 154 | S102: 492 | T102: 0 | U102: 15 | V102: 41 | W102: 保障农业生产需求 | X102: 就业务工
A103: 98 | B103: 乡村建设行动 | C103: 农村基础设施 | D103: 农村道路建设 （通村、通户路） | E103: 黄沙街镇 | F103: 黄秀村 | G103: 农耕园到黄秀中学再到孔桥松主干道路油化 | H103: 扩建 | I103: 政家屋至孔桥松 | J103: 2026.01.01 | K103: 2026.12.31 | L103: 黄秀村委会 | M103: 农耕园到黄秀中学再到孔桥松主干道路油化4200米 | N103: 80 | O103: 58 | P103: 22 | Q103: 3 | R103: 383 | S103: 862 | T103: 0 | U103: 14 | V103: 55 | W103: 方便群众出行 | X103: 就业务工
A104: 99 | B104: 产业发展 | C104: 配套基础设施项目 | D104: 小型农田水利设施建设 | E104: 黄沙街镇 | F104: 黄秀村 | G104: 黄秀村固干山塘清淤、护坡、塘提加固硬化 | H104: 扩建 | I104: 孔桥松 | J104: 2026.01.01 | K104: 2026.12.31 | L104: 黄秀村委会 | M104: 清淤、护坡、塘提加固硬化三口水塘45亩 | N104: 10 | O104: 8 | P104: 2 | Q104: 1 | R104: 260 | S104: 358 | T104: 0 | U104: 6 | V104: 13 | W104: 保障农业生产需求 | X104: 就业务工
A105: 100 | B105: 产业发展 | C105: 配套基础设施项目 | D105: 小型农田水利设施建设 | E105: 黄沙街镇 | F105: 刘士奇村 | G105: 李家塘塘堤护坡，高低涵改造 | H105: 扩建 | I105: 群乐片八组 | J105: 2026.10.20 | K105: 2026.12.15 | L105: 刘士奇村 | M105: 塘堤护坡长80米*高7米，高低涵改造1个 塘内清淤4000方、淤泥运输4000方 | N105: 15 | O105: 5 | P105: 10 | Q105: 1 | R105: 42 | S105: 156 | T105: 0 | U105: 3 | V105: 11 | W105: 保障农业生产需求 | X105: 就业务工
A106: 101 | B106: 产业发展 | C106: 配套基础设施项目 | D106: 小型农田水利设施建设 | E106: 黄沙街镇 | F106: 刘士奇村 | G106: 后背塘塘堤护坡，高低涵改造 | H106: 扩建 | I106: 群乐片十五组 | J106: 2026.10.15 | K106: 2026.12.10 | L106: 刘士奇村 | M106: 堤护坡长32米，高低涵改造1个 塘内清淤1200方、淤泥运输1200方 | N106: 15 | O106: 5 | P106: 10 | Q106: 1 | R106: 55 | S106: 184 | T106: 0 | U106: 2 | V106: 7 | W106: 保障农业生产需求 | X106: 就业务工
A107: 102 | B107: 产业发展 | C107: 配套基础设施项目 | D107: 小型农田水利设施建设 | E107: 黄沙街镇 | F107: 刘士奇村 | G107: 反背塘塘堤护坡，高低涵改造 | H107: 扩建 | I107: 九元片一组 | J107: 2026.10.15 | K107: 2026.12.20 | L107: 刘士奇村 | M107: 塘堤护坡长28米*高2.8米，高低涵改造1个 塘内清淤800方、淤泥运输800方 | N107: 8 | O107: 5 | P107: 3 | Q107: 1 | R107: 24 | S107: 69 | T107: 0 | U107: 2 | V107: 8 | W107: 保障农业生产需求 | X107: 就业务工
A108: 103 | B108: 乡村建设行动 | C108: 农村基础设施 | D108: 农村道路建设 （通村、通户路） | E108: 黄沙街镇 | F108: 龙凤村 | G108: 龙凤村君召屋至唐湾连接路 | H108: 扩建 | I108: 龙凤村青山片 | J108: 2026.11.01 | K108: 2026.12.30 | L108: 龙凤村 | M108: 君召屋至唐湾连接路0.6公里硬化 | N108: 28 | O108: 26 | P108: 2 | Q108: 1 | R108: 170 | S108: 680 | T108: 1 | U108: 18 | V108: 65 | W108: 群众出行方便，便于耕种 | X108: 就业务工
A109: 104 | B109: 乡村建设行动 | C109: 农村基础设施 | D109: 农村道路建设 （通村、通户路） | E109: 黄沙街镇 | F109: 龙凤村 | G109: 龙凤村青山片五组至长湖乡荆州连接路 | H109: 扩建 | I109: 龙凤村 | J109: 2026.11.01 | K109: 2026.12.30 | L109: 龙凤村 | M109: 龙凤村青山片五组至长湖乡荆州连接路 1.4公里硬化 | N109: 47 | O109: 42 | P109: 5 | Q109: 2 | R109: 1600 | S109: 5800 | T109: 2 | U109: 30 | V109: 103 | W109: 群众出行方便，便于耕种 | X109: 就业务工
A110: 105 | B110: 乡村建设行动 | C110: 农村基础设施 | D110: 农村道路建设 （通村、通户路） | E110: 黄沙街镇 | F110: 三和村 | G110: 再茂片道路拓宽 | H110: 扩建 | I110: 三和村再茂片 | J110: 2026.10 | K110: 2026.12 | L110: 三和村 | M110: 修建3公里拓宽1.5米 | N110: 9 | O110: 8 | P110: 1 | Q110: 1 | R110: 850 | S110: 3247 | T110: 1 | U110: 10 | V110: 28 | W110: 保障出行需求 | X110: 就业务工
A111: 106 | B111: 产业发展 | C111: 配套基础设施项目 | D111: 小型农田水利设施建设 | E111: 黄沙街镇 | F111: 新天村 | G111: 高举组戴门塘清淤护砌 | H111: 扩建 | I111: 高举组 | J111: 2026.01 | K111: 2026.11 | L111: 新天村 | M111: 清淤、护砌2亩 | N111: 5 | O111: 5 | P111: 0 | Q111: 1 | R111: 56 | S111: 168 | T111: 1 | U111: 12 | V111: 42 | W111: 保障农业生产需求 | X111: 就业务工
A112: 107 | B112: 产业发展 | C112: 配套基础设施项目 | D112: 小型农田水利设施建设 | E112: 黄沙街镇 | F112: 新天村 | G112: 公塘组庙塘清淤护砌 | H112: 扩建 | I112: 公塘组 | J112: 2026.01 | K112: 2026.11 | L112: 新天村 | M112: 清淤、护砌5亩 | N112: 8 | O112: 8 | P112: 0 | Q112: 1 | R112: 42 | S112: 152 | T112: 1 | U112: 12 | V112: 42 | W112: 保障农业生产需求 | X112: 就业务工
A113: 108 | B113: 乡村建设行动 | C113: 农村基础设施 | D113: 农村道路建设 （通村、通户路） | E113: 黄沙街镇 | F113: 新天村 | G113: 方家组至江粟陈村连村道路硬化 | H113: 扩建 | I113: 方家组 | J113: 2026.09 | K113: 2026.10 | L113: 新天村 | M113: 道路拓宽及硬化990米*4.5米 | N113: 45 | O113: 45 | P113: 0 | Q113: 1 | R113: 155 | S113: 562 | T113: 1 | U113: 19 | V113: 47 | W113: 方便群众出行 | X113: 就业务工
A114: 109 | B114: 乡村建设行动 | C114: 农村基础设施 | D114: 农村道路建设 （通村、通户路） | E114: 黄沙街镇 | F114: 和谐村 | G114: 和谐村红卫片道路扩宽工程 | H114: 新建/改建 | I114: 和谐村 | J114: 2026.1 | K114: 2026.12 | L114: 和谐村 | M114: 拓宽红卫公路4公里 | N114: 100 | O114: 60 | P114: 40 | Q114: 1 | R114: 460 | S114: 1520 | T114: 1 | U114: 19 | V114: 42 | W114: 方便群众出行 | X114: 就业务工
A115: 110 | B115: 乡村建设行动 | C115: 农村基础设施 | D115: 农村道路建设 （通村、通户路） | E115: 黄沙街镇 | F115: 和谐村 | G115: 和谐村友义片道路扩宽工程 | H115: 新建/改建 | I115: 和谐村 | J115: 2026.1 | K115: 2026.12 | L115: 和谐村 | M115: 拓宽友义公路4公里 | N115: 100 | O115: 60 | P115: 40 | Q115: 1 | R115: 230 | S115: 1350 | T115: 1 | U115: 10 | V115: 56 | W115: 方便群众出行 | X115: 就业务工
A116: 111 | B116: 产业发展 | C116: 配套基础设施项目 | D116: 小型农田水利设施建设 | E116: 黄沙街镇 | F116: 和谐村 | G116: 红卫片7、10组门前塘维修加固 | H116: 新建 | I116: 和谐村 | J116: 2026.1 | K116: 2026.12 | L116: 和谐村 | M116: 红卫片7、10组门前塘维修加固 | N116: 10 | O116: 6 | P116: 4 | Q116: 1 | R116: 150 | S116: 450 | T116: 1 | U116: 4 | V116: 16 | W116: 保障农业生产需求 | X116: 就业务工
A117: 112 | B117: 产业发展 | C117: 配套基础设施项目 | D117: 小型农田水利设施建设 | E117: 黄沙街镇 | F117: 中兴村 | G117: 门前塘塘清淤、涵管建设 | H117: 扩建 | I117: 光华十组 | J117: 2026.08 | K117: 2026.12 | L117: 中兴村 | M117: 安装涵管15米、清淤3000立方，建立便桥1座 | N117: 10 | O117: 5 | P117: 5 | Q117: 1 | R117: 21 | S117: 85 | T117: 0 | U117: 2 | V117: 8 | W117: 保障农业生产需求 | X117: 就业务工
A118: 113 | B118: 产业发展 | C118: 配套基础设施项目 | D118: 小型农田水利设施建设 | E118: 黄沙街镇 | F118: 中兴村 | G118: 大塘涵管建设、清淤转运 | H118: 扩建 | I118: 光华5组 | J118: 2026.07 | K118: 2026.12 | L118: 中兴村 | M118: 安装涵管12米、清淤3800立方米，建立便桥1座 | N118: 12 | O118: 8 | P118: 4 | Q118: 1 | R118: 27 | S118: 109 | T118: 0 | U118: 5 | V118: 19 | W118: 保障农业生产需求 | X118: 就业务工
A119: 114 | B119: 产业发展 | C119: 配套基础设施项目 | D119: 小型农田水利设施建设 | E119: 黄沙街镇 | F119: 中兴村 | G119: 枫树塘涵管建设、清淤转运 | H119: 扩建 | I119: 和平1组 | J119: 2026.08 | K119: 2026.12 | L119: 中兴村 | M119: 安装涵管8米、清淤2500立方米，建立便桥1座 | N119: 8 | O119: 5 | P119: 3 | Q119: 1 | R119: 22 | S119: 90 | T119: 0 | U119: 4 | V119: 17 | W119: 保障农业生产需求 | X119: 就业务工
A120: 115 | B120: 产业发展 | C120: 配套基础设施项目 | D120: 小型农田水利设施建设 | E120: 黄沙街镇 | F120: 中兴村 | G120: 江塘涵管建设、清淤转运 | H120: 扩建 | I120: 和平9组 | J120: 2026.07 | K120: 2026.12 | L120: 中兴村 | M120: 安装涵管16米、清淤4100立方米，建立便桥1座 | N120: 15 | O120: 8 | P120: 7 | Q120: 1 | R120: 33 | S120: 121 | T120: 0 | U120: 4 | V120: 16 | W120: 保障农业生产需求 | X120: 就业务工
A121: 116 | B121: 乡村建设行动 | C121: 农村基础设施 | D121: 农村道路建设 （通村、通户路） | E121: 黄沙街镇 | F121: 黄沙街镇 | G121: 荣黄线升级改造 | H121: 扩建 | I121: 刘士奇村、黄秀村 | J121: 2026.07 | K121: 2026.12 | L121: 黄沙街镇 | M121: 长14.8公里拓宽硬化，5米拓宽为6米 | N121: 400 | O121: 80 | P121: 320 | Q121: 2 | R121: 78 | S121: 240 | T121: 0 | U121: 4 | V121: 17 | W121: 方便群众出行 | X121: 其他
A122: 117 | B122: 乡村建设行动 | C122: 农村基础设施 | D122: 农村道路建设 （通村、通户路） | E122: 黄沙街镇 | F122: 黄沙街镇 | G122: 船大路升级改造 | H122: 扩建 | I122: 和谐村、大明村 | J122: 2026.07 | K122: 2026.12 | L122: 黄沙街镇 | M122: 长5.13公里拓宽硬化，5米拓宽为7米 | N122: 200 | O122: 50 | P122: 150 | Q122: 2 | R122: 90 | S122: 280 | T122: 1 | U122: 10 | V122: 34 | W122: 方便群众出行 | X122: 其他
A123: 118 | B123: 就业项目 | C123: 务工补助 | D123: 生产奖补、务工奖补 | E123: 黄沙街镇 | F123: 黄沙街镇 | G123: 监测户、脱贫户产业奖补 | H123: 续建 | I123: 黄沙街镇 | J123: 2026.07 | K123: 2026.12 | L123: 黄沙街镇 | M123: 发放监测户、脱贫户生产物资 | N123: 33 | O123: 33 | P123: 0 | Q123: 14 | R123: 620 | S123: 1800 | T123: 3 | U123: 47 | V123: 150 | W123: 保障农户生活需求 | X123: 其他
A124: 119 | B124: 乡村建设行动 | C124: 农村基础设施 | D124: 农村道路建设 （通村、通户路） | E124: 毛田镇 | F124: 白若村 | G124: 积谷至东港公路油化 | H124: 改扩建 | I124: 积谷到东港公路 | J124: 2026.01 | K124: 2026.12 | L124: 白若村 | M124: 积谷至东港公路维修油化80万元 | N124: 80 | O124: 70 | P124: 10 | Q124: 1 | R124: 520 | S124: 3000 | T124: 1 | U124: 58 | V124: 180 | W124: 道路路面油化，方便群众出行
A125: 120 | B125: 产业发展 | C125: 生产项目 | D125: 种植业基地 | E125: 毛田镇 | F125: 黄道村 | G125: 黄茶基地施肥培育 | H125: 续建 | I125: 黄道村联盟片 | J125: 2026.01 | K125: 2026.12 | L125: 黄道村 | M125: 110亩黄茶基地维护 | N125: 10 | O125: 0 | P125: 0 | Q125: 1 | R125: 131 | S125: 408 | T125: 1 | U125: 22 | V125: 61 | W125: 发展壮大产业项目，提高集体经济收入
A126: 121 | B126: 产业发展 | C126: 配套基础设施项目 | D126: 小型农田水利设施建设 | E126: 毛田镇 | F126: 黄道村 | G126: 红旗水库引水渠维修 | H126: 新建 | I126: 黄道村联盟片 | J126: 2026.01 | K126: 2026.12 | L126: 黄道村 | M126: 2100米水渠毁坏段维修 | N126: 30 | O126: 0 | P126: 0 | Q126: 1 | R126: 130 | S126: 408 | T126: 1 | U126: 22 | V126: 31 | W126: 改善道路路面，方便群众出行
A127: 122 | B127: 产业发展 | C127: 生产项目 | D127: 种植业基地 | E127: 毛田镇 | F127: 相思村 | G127: 中药村种植 | H127: 续建 | I127: 相思村 | J127: 2026.01 | K127: 2026.12 | L127: 相思村 | M127: 天麻25亩，黄精20亩，白芨10亩，总计55亩 | N127: 20 | O127: 15 | P127: 5 | Q127: 1 | R127: 832 | S127: 3075 | T127: 1 | U127: 65 | V127: 185 | W127: 发展壮大产业项目，提高集体经济收入
A128: 123 | B128: 产业发展 | C128: 配套基础设施项目 | D128: 小型农田水利设施建设 | E128: 毛田镇 | F128: 相思村 | G128: 山塘维修 | H128: 改建 | I128: 相思村 | J128: 2026.01 | K128: 2026.12 | L128: 相思村 | M128: 老屋水口塘，钟家山塘，谢家山塘，山子山塘，总计四口 | N128: 15 | O128: 12 | P128: 3 | Q128: 1 | R128: 832 | S128: 3075 | T128: 1 | U128: 65 | V128: 185 | W128: 完善山塘基础设施，优化水利功能
A129: 124 | B129: 产业发展 | C129: 生产项目 | D129: 种植业基地 | E129: 毛田镇 | F129: 道仁村 | G129: 茶叶种植基地维护 | H129: 续建 | I129: 道仁村 | J129: 2026.01 | K129: 2026.12 | L129: 道仁村 | M129: 80亩茶叶维护 | N129: 15 | O129: 10 | P129: 5 | Q129: 1 | R129: 184 | S129: 433 | T129: 1 | U129: 37 | V129: 104 | W129: 发展壮大产业项目，提高集体经济收入
A130: 125 | B130: 乡村建设行动 | C130: 农村基础设施 | D130: 农村道路建设 （通村、通户路） | E130: 毛田镇 | F130: 道仁村 | G130: 道仁片易家组公路硬化 | H130: 改建 | I130: 道仁村 | J130: 2026.01 | K130: 2026.12 | L130: 道仁村 | M130: 300米连接主干道组级路硬化 | N130: 12 | O130: 10 | P130: 2 | Q130: 1 | R130: 52 | S130: 148 | T130: 1 | U130: 5 | V130: 14 | W130: 改善道路路面，方便群众出行
A131: 126 | B131: 产业发展 | C131: 生产项目 | D131: 种植业基地 | E131: 毛田镇 | F131: 卢塅村 | G131: 黄栀子种植 | H131: 新建 | I131: 卢塅村 | J131: 2026.01 | K131: 2026.12 | L131: 卢塅村 | M131: 40亩黄栀子种植 | N131: 20 | O131: 0 | P131: 0 | Q131: 1 | R131: 1098 | S131: 4276 | T131: 1 | U131: 80 | V131: 263 | W131: 发展壮大产业项目，提高集体经济收入
A132: 127 | B132: 产业发展 | C132: 配套基础设施项目 | D132: 小型农田水利设施建设 | E132: 毛田镇 | F132: 卢塅村 | G132: 卢塅村烟火塘维修加固 | H132: 改建 | I132: 卢塅村 | J132: 2026.01 | K132: 2026.12 | L132: 卢塅村 | M132: 竹峰片山塘，七狮组烟火塘，塘家组山塘维修 | N132: 20 | O132: 0 | P132: 0 | Q132: 1 | R132: 352 | S132: 1539 | T132: 1 | U132: 38 | V132: 122 | W132: 完善山塘基础设施，优化水利功能
A133: 128 | B133: 乡村建设行动 | C133: 农村基础设施 | D133: 农村道路建设 （通村、通户路） | E133: 毛田镇 | F133: 卢塅村 | G133: 中道片至中兴村道路拓宽及护砌 | H133: 改建 | I133: 卢塅村 | J133: 2026.01 | K133: 2026.12 | L133: 卢塅村 | M133: 3.4公里公路地基拓宽，损毁处维修 | N133: 15 | O133: 10 | P133: 5 | Q133: 1 | R133: 1098 | S133: 4276 | T133: 1 | U133: 24 | V133: 82 | W133: 改善道路路面，方便群众出行
A134: 129 | B134: 产业发展 | C134: 生产项目 | D134: 种植业基地 | E134: 毛田镇 | F134: 英桥村 | G134: 黄精种植后续管理 | H134: 续建 | I134: 英桥村 | J134: 2026.01 | K134: 2026.12 | L134: 英桥村 | M134: 20亩黄精种植后续管护 | N134: 15 | O134: 13 | P134: 2 | Q134: 1 | R134: 161 | S134: 491 | T134: 1 | U134: 61 | V134: 191 | W134: 发展壮大产业项目，提高集体经济收入
A135: 130 | B135: 乡村建设行动 | C135: 农村基础设施 | D135: 农村道路建设 （通村、通户路） | E135: 毛田镇 | F135: 英桥村 | G135: 毛英路硬化 | H135: 改建 | I135: 英桥村 | J135: 2026.01 | K135: 2026.12 | L135: 英桥村 | M135: 4公里道路硬化 | N135: 260 | O135: 30 | P135: 230 | Q135: 1 | R135: 731 | S135: 3337 | T135: 1 | U135: 61 | V135: 191 | W135: 改善道路路面，方便群众出行
A136: 131 | B136: 产业发展 | C136: 生产项目 | D136: 种植业基地 | E136: 毛田镇 | F136: 小港村 | G136: 黄精药村种植 | H136: 新建 | I136: 小港村 | J136: 2026.01 | K136: 2026.12 | L136: 小港村 | M136: 6亩黄精种植 | N136: 15 | O136: 0 | P136: 0 | Q136: 1 | R136: 813 | S136: 2406 | T136: 1 | U136: 84 | V136: 215 | W136: 发展壮大产业项目，提高集体经济收入
A137: 132 | B137: 乡村建设行动 | C137: 农村基础设施 | D137: 农村道路建设 （通村、通户路） | E137: 毛田镇 | F137: 小港村 | G137: 南庙片张边组道路硬化 | H137: 改建 | I137: 小港村 | J137: 2026.01 | K137: 2026.12 | L137: 小港村 | M137: 1.8公里公路硬化 | N137: 20 | O137: 20 | P137: 0 | Q137: 1 | R137: 75 | S137: 302 | T137: 1 | U137: 15 | V137: 42 | W137: 改善道路路面，方便群众出行
A138: 133 | B138: 产业发展 | C138: 生产项目 | D138: 种植业基地 | E138: 毛田镇 | F138: 中兴村 | G138: 榴莲蜜薯种植 | H138: 新建 | I138: 志元片区 | J138: 2026-02-01 | K138: 2026-04-01 | L138: 中兴村 | M138: 40亩榴莲蜜薯种植 | N138: 45 | O138: 30 | P138: 15 | Q138: 1 | R138: 650 | S138: 1850 | T138: 1 | U138: 75 | V138: 195 | W138: 发展壮大产业项目，提高集体经济收入
A139: 134 | B139: 产业发展 | C139: 生产项目 | D139: 种植业基地 | E139: 毛田镇 | F139: 毛田村 | G139: 水果金盆柚种植 | H139: 续建 | I139: 胡铁片 | J139: 2026-01-01 | K139: 2026-12-01 | L139: 毛田村 | M139: 水果金盆柚扩种20亩 | N139: 20 | O139: 0 | P139: 0 | Q139: 1 | R139: 879 | S139: 2553 | T139: 1 | U139: 62 | V139: 180 | W139: 发展壮大产业项目，提高集体经济收入
A140: 135 | B140: 乡村建设行动 | C140: 农村基础设施 | D140: 农村道路建设 （通村、通户路） | E140: 毛田镇 | F140: 毛田村 | G140: 郭家组到庙山组路面维修 | H140: 改建 | I140: 育英片 | J140: 2026-01-01 | K140: 2026-12-01 | L140: 毛田村 | M140: 郭家组到庙山组路面3公里维修 | N140: 15 | O140: 15 | P140: 0 | Q140: 1 | R140: 879 | S140: 2553 | T140: 1 | U140: 62 | V140: 180 | W140: 改善道路路面，方便群众出行
A141: 136 | B141: 产业发展 | C141: 生产项目 | D141: 种植业基地 | E141: 毛田镇 | F141: 李塅村 | G141: 杨塅片黄精种植 | H141: 新建 | I141: 李塅村 | J141: 2026-01-01 | K141: 2026-12-01 | L141: 李塅村 | M141: 20亩黄精种植 | N141: 15 | O141: 0 | P141: 0 | Q141: 1 | R141: 160 | S141: 810 | T141: 1 | U141: 20 | V141: 120 | W141: 发展壮大产业项目，提高集体经济收入
A142: 137 | B142: 乡村建设行动 | C142: 农村基础设施 | D142: 农村道路建设 （通村、通户路） | E142: 毛田镇 | F142: 李塅村 | G142: 朝西到如止马道路拓宽硬化 | H142: 改建 | I142: 李塅村 | J142: 2026-01-01 | K142: 2026-12-01 | L142: 李塅村 | M142: 800米长，拓宽到5米硬化护砌 | N142: 20 | O142: 20 | P142: 0 | Q142: 1 | R142: 60 | S142: 480 | T142: 1 | U142: 6 | V142: 24 | W142: 改善道路路面，方便群众出行
A143: 138 | B143: 乡村建设行动 | C143: 农村基础设施 | D143: 农村道路建设 （通村、通户路） | E143: 毛田镇 | F143: 西台村 | G143: 长仑片短冲组公路维修 | H143: 改建 | I143: 长仑片短冲组 | J143: 2026-01-01 | K143: 2026-12-01 | L143: 西台村 | M143: 2000㎡硬化，0.5KM的路基清理 | N143: 20 | O143: 15 | P143: 5 | Q143: 1 | R143: 27 | S143: 120 | T143: 1 | U143: 4 | V143: 11 | W143: 改善道路路面，方便群众出行
A144: 139 | B144: 产业发展 | C144: 生产项目 | D144: 种植业基地 | E144: 毛田镇 | F144: 云山村 | G144: 金盆柚种植 | H144: 新建 | I144: 云山村 | J144: 2026-01-01 | K144: 2026-12-01 | L144: 云山村 | M144: 80亩金盆柚种植 | N144: 40 | O144: 0 | P144: 0 | Q144: 1 | R144: 760 | S144: 2400 | T144: 1 | U144: 71 | V144: 193 | W144: 发展壮大产业项目，提高集体经济收入
A145: 140 | B145: 乡村建设行动 | C145: 农村基础设施 | D145: 农村道路建设 （通村、通户路） | E145: 毛田镇 | F145: 云山村 | G145: 联合片道路拓宽硬化 | H145: 改建 | I145: 云山村 | J145: 2026-01-01 | K145: 2026-12-01 | L145: 云山村 | M145: 拓宽硬化2公里 | N145: 20 | O145: 20 | P145: 0 | Q145: 1 | R145: 760 | S145: 2400 | T145: 1 | U145: 71 | V145: 193 | W145: 改善道路路面，方便群众出行
A146: 141 | B146: 产业发展 | C146: 生产项目 | D146: 种植业基地 | E146: 毛田镇 | F146: 芭蕉村 | G146: 黄茶基地后期维护 | H146: 续建 | I146: 芭蕉村 | J146: 2026-01-01 | K146: 2026-12-01 | L146: 芭蕉村 | M146: 22亩黄茶基地维护管理 | N146: 10 | O146: 8 | P146: 2 | Q146: 1 | R146: 845 | S146: 3328 | T146: 1 | U146: 98 | V146: 288 | W146: 发展壮大产业项目，提高集体经济收入
A147: 142 | B147: 乡村建设行动 | C147: 农村基础设施 | D147: 农村道路建设 （通村、通户路） | E147: 毛田镇 | F147: 芭蕉村 | G147: 港堤片道路拓宽硬化 | H147: 改建 | I147: 芭蕉村 | J147: 2026-01-01 | K147: 2026-12-01 | L147: 芭蕉村 | M147: 1.2公里公路清基、护砌、硬化 | N147: 65 | O147: 50 | P147: 15 | Q147: 1 | R147: 845 | S147: 3328 | T147: 1 | U147: 98 | V147: 288 | W147: 改善道路路面，方便群众出行
A148: 143 | B148: 产业发展 | C148: 生产项目 | D148: 种植业基地 | E148: 毛田镇 | F148: 南冲村 | G148: 金盆柚种植 | H148: 新建 | I148: 南冲村 | J148: 2026-01-01 | K148: 2026-12-01 | L148: 南冲村 | M148: 50亩金盆柚种植 | N148: 40 | O148: 35 | P148: 5 | Q148: 1 | R148: 87 | S148: 274 | T148: 1 | U148: 6 | V148: 21 | W148: 发展壮大产业项目，提高集体经济收入
A149: 144 | B149: 乡村建设行动 | C149: 农村基础设施 | D149: 农村道路建设 （通村、通户路） | E149: 毛田镇 | F149: 南冲村 | G149: 南冲村断头路硬化 | H149: 新建 | I149: 中条组，张家组，下山组，下屋组 | J149: 2026-01-01 | K149: 2026-12-01 | L149: 南冲村 | M149: 中条500米，张家400米，下山900米，下屋60米硬化 | N149: 30 | O149: 26 | P149: 4 | Q149: 1 | R149: 263 | S149: 1082 | T149: 1 | U149: 15 | V149: 49 | W149: 改善道路路面，方便群众出行
A150: 145 | B150: 产业发展 | C150: 生产项目 | D150: 种植业基地 | E150: 毛田镇 | F150: 孟城村 | G150: 110亩茶叶基地养护 | H150: 续建 | I150: 杨家片、文洞片 | J150: 2026-01-01 | K150: 2026-12-01 | L150: 孟城村 | M150: 110亩茶叶基地养护 | N150: 15 | O150: 15 | P150: 0 | Q150: 1 | R150: 378 | S150: 1115 | T150: 1 | U150: 126 | V150: 369 | W150: 发展壮大产业项目，提高集体经济收入
A151: 146 | B151: 乡村建设行动 | C151: 农村基础设施 | D151: 农村道路建设 （通村、通户路） | E151: 毛田镇 | F151: 孟城村 | G151: 孟城村文洞片道路维修 | H151: 改建 | I151: 文洞片 | J151: 2026-01-01 | K151: 2026-12-01 | L151: 孟城村 | M151: 文洞片1.5km公路维修 | N151: 20 | O151: 20 | P151: 0 | Q151: 1 | R151: 625 | S151: 1895 | T151: 1 | U151: 81 | V151: 208 | W151: 改善道路路面，方便群众出行
A152: 147 | B152: 产业发展 | C152: 生产项目 | D152: 种植业基地 | E152: 毛田镇 | F152: 鸣山村 | G152: 黄茶扩种 | H152: 改扩建 | I152: 鸣山村 | J152: 2026.4 | K152: 2026.10 | L152: 鸣山村 | M152: 黄茶扩种30亩 | N152: 20 | O152: 0 | P152: 0 | Q152: 1 | R152: 295 | S152: 1121 | T152: 1 | U152: 36 | V152: 147 | W152: 发展壮大产业项目，提高集体经济收入
A153: 148 | B153: 乡村建设行动 | C153: 农村基础设施 | D153: 农村道路建设 （通村、通户路） | E153: 毛田镇 | F153: 鸣山村 | G153: 文昌至叶洞、何洞公路改造 | H153: 改建 | I153: 鸣山村 | J153: 2026.5 | K153: 2026.9 | L153: 鸣山村 | M153: 文昌至叶洞、何洞2.17公里硬化 | N153: 60 | O153: 60 | P153: 0 | Q153: 1 | R153: 312 | S153: 1023 | T153: 1 | U153: 36 | V153: 147 | W153: 改善道路路面，方便群众出行
A154: 149 | B154: 乡村建设行动 | C154: 农村基础设施 | D154: 农村道路建设 （通村、通户路） | E154: 毛田镇 | F154: 珠港村 | G154: 九龙片村级道路维修工程 | H154: 改建 | I154: 九龙片 | J154: 2026.3 | K154: 2026.6 | L154: 珠港村 | M154: 全长1300米拓宽硬化1.5米.破损路面维修 | N154: 45 | O154: 45 | P154: 0 | Q154: 1 | R154: 150 | S154: 450 | T154: 1 | U154: 14 | V154: 56 | W154: 改善道路路面，方便群众出行
A155: 150 | B155: 产业发展 | C155: 加工流通项目 | D155: 产地初加工和精深加工 | E155: 毛田镇 | F155: 珠港村 | G155: 珠港村红薯种植加工 | H155: 新建 | I155: 珠港村 | J155: 2026.4 | K155: 2026.11 | L155: 珠港村 | M155: 220农戶种植红薯400余亩，（红薯进行深加工成红薯粉.红薯丝） | N155: 30 | O155: 0 | P155: 0 | Q155: 1 | R155: 220 | S155: 810 | T155: 1 | U155: 52 | V155: 195 | W155: 发展壮大产业项目，提高集体经济收入
A156: 151 | B156: 产业发展 | C156: 生产项目 | D156: 光伏电站建设 | E156: 新开镇 | F156: 新开村 | G156: 村部光伏发电项目 | H156: 新建 | I156: 村委会 | J156: 2026.3 | K156: 2026.9 | L156: 新开村委会 | M156: 利用村部办公楼屋面约800m2进行光伏发电项目,预计投入20万元左右 | N156: 20 | O156: 20 | P156: 0 | Q156: 1 | R156: 1756 | S156: 5832 | T156: 1 | U156: 43 | V156: 104 | W156: 带动周边经济发展和解决有劳动能力的贫困户就业，促进脱贫户、多渠道长期稳定收益增收，助推全村巩固拓展脱贫攻坚成果同乡村振兴有效衔接 | X156: 带动全村农户1756户、5832人，其中脱贫户43户104人。
A157: 152 | B157: 产业发展 | C157: 配套基础设施项目 | D157: 小型农田水利设施建设 | E157: 新开镇 | F157: 新开村 | G157: 胜天片甘家组水渠维修 | H157: 维修硬化 | I157: 胜天片甘家组 | J157: 2026.1 | K157: 2026.11 | L157: 新开村委会 | M157: 胜天片甘家组水渠清淤硬化维修 | N157: 10 | O157: 10 | P157: 0 | Q157: 1 | R157: 35 | S157: 137 | T157: 0 | U157: 1 | V157: 3 | W157: 解决胜天片甘家组35户137人农田灌溉，其中脱贫户1户3人 | X157: 解决胜天片甘家组35户137人农田灌溉，其中脱贫户1户3人
A158: 153 | B158: 乡村建设行动 | C158: 农村基础设施 | D158: 农村道路建设 （通村、通户路） | E158: 新开镇 | F158: 新开村 | G158: 胜天片甘家组瑶子山路硬化 | H158: 新建 | I158: 村委会 | J158: 2026.9 | K158: 2026.11 | L158: 新开村委会 | M158: 胜天片甘家组瑶子山路硬化 | N158: 8 | O158: 8 | P158: 0 | Q158: 1 | R158: 35 | S158: 137 | T158: 0 | U158: 1 | V158: 3 | W158: 解决胜天片甘家组35户137人安全出行，其中脱贫户1户3人 | X158: 解决胜天片甘家组35户137人安全出行，其中脱贫户1户3人
A159: 154 | B159: 产业发展 | C159: 配套基础设施项目 | D159: 小型农田水利设施建设 | E159: 新开镇 | F159: 朱砂桥村 | G159: 庙仙塘维修加固 | H159: 新建 | I159: 朱砂桥村兴安片 | J159: 2026-01-01 | K159: 2026-06-01 | L159: 朱砂桥村委会 | M159: 山塘清淤扩容、堤坡加固、低涵重建。 | N159: 10 | O159: 5 | P159: 5 | Q159: 1 | R159: 165 | S159: 420 | T159: 1 | U159: 9 | V159: 16 | W159: 解决了兴安片农业生产水利问题和兴安片165户420人的生产生活需求。 | X159: 带动脱贫户、监测户9户16人、以及低保、特困、重病重残等困难户群体
A160: 155 | B160: 产业发展 | C160: 配套基础设施项目 | D160: 小型农田水利设施建设 | E160: 新开镇 | F160: 朱砂桥村 | G160: 石灰塘维修加固及大堰次口维修 | H160: 新建 | I160: 朱砂桥村李伏片 | J160: 2026-01-01 | K160: 2026-06-01 | L160: 朱砂桥村委会 | M160: 山塘清淤扩容、堤坡加固及大堰次口硬化。 | N160: 12 | O160: 5 | P160: 7 | Q160: 1 | R160: 23 | S160: 85 | T160: 1 | U160: 4 | V160: 13 | W160: 解决了李伏片八组农业生产水利问题和李伏片八组23户85人的生产生活需求。 | X160: 带动脱贫户、监测户4户13人、以及低保、特困、重病重残等困难户群体
A161: 156 | B161: 产业发展 | C161: 配套基础设施项目 | D161: 小型农田水利设施建设 | E161: 新开镇 | F161: 朱砂桥村 | G161: 河家北渠道维修 | H161: 新建 | I161: 朱砂桥村朱砂片 | J161: 2026-01-01 | K161: 2026-06-01 | L161: 朱砂桥村委会 | M161: 渠道清淤、拦水坝重建。 | N161: 8 | O161: 5 | P161: 3 | Q161: 1 | R161: 26 | S161: 95 | T161: 1 | U161: 1 | V161: 1 | W161: 解决了朱砂片朱砂组农业生产水利问题和片朱砂组26户95人的生产生活需求。 | X161: 带动脱贫户、监测户1户1人、以及低保、特困、重病重残等困难户群体
A162: 157 | B162: 产业发展 | C162: 生产项目 | D162: 种植业基地 | E162: 新开镇 | F162: 朱砂桥村 | G162: 金盆柚种植 | H162: 新建 | I162: 朱砂桥村 | J162: 2026-01-02 | K162: 2026-08-01 | L162: 朱砂桥村委会 | M162: 种植金盆柚500亩 | N162: 250 | O162: 100 | P162: 150 | Q162: 1 | R162: 980 | S162: 3068 | T162: 1 | U162: 55 | V162: 141 | W162: 带动周边经济发展和解决有劳动能力的贫困户就业，促进脱贫户、监测户多渠道长期稳定收益增收，助推全村巩固拓展脱贫攻坚成果同乡村振兴有效衔接。 | X162: 带动全村农户980户、3068人，其中脱贫户、监测对象55户141人
A163: 158 | B163: 产业发展 | C163: 生产项目 | D163: 光伏电站建设 | E163: 新开镇 | F163: 友谊村 | G163: 光伏发电入股 | H163: 新建 | I163: 友谊村部 | J163: 2026-01-01 | K163: 2026-12-31 | L163: 友谊村 | M163: 光伏发电入股 | N163: 26 | O163: 24 | P163: 2 | Q163: 1 | R163: 867 | S163: 3086 | T163: 0 | U163: 33 | V163: 80 | W163: 带动周边经济发展和解决有劳动能力的贫困户就业，促进脱贫户、监测户多渠道长期稳定收益增收，助推全村巩固拓展脱贫攻坚成果同乡村振兴有效衔接。 | X163: 带动全村农户867户、3086人，其中脱贫户32户76人，监测户1户4人
A164: 159 | B164: 产业发展 | C164: 产业服务支撑项目 | D164: 农业社会化服务 | E164: 新开镇 | F164: 友谊村 | G164: 购置收割机 | H164: 新建 | I164: 友谊村部 | J164: 2026-01-01 | K164: 2026-12-31 | L164: 友谊村 | M164: 购置一台收割机 | N164: 20 | O164: 18 | P164: 2 | Q164: 1 | R164: 867 | S164: 3086 | T164: 0 | U164: 33 | V164: 80 | W164: 带动周边经济发展和解决有劳动能力的贫困户就业，促进脱贫户、监测户多渠道长期稳定收益增收，助推全村巩固拓展脱贫攻坚成果同乡村振兴有效衔接。 | X164: 带动全村农户867户、3086人，其中脱贫户32户76人，监测户1户4人
A165: 160 | B165: 产业发展 | C165: 配套基础设施项目 | D165: 小型农田水利设施建设 | E165: 新开镇 | F165: 友谊村 | G165: 车塘片四组门口塘维修、清淤 | H165: 新建 | I165: 友谊村车塘片四组 | J165: 2026-01-01 | K165: 2026-12-31 | L165: 友谊村 | M165: 车塘片四组门口塘维修、清淤 | N165: 10 | O165: 8 | P165: 2 | Q165: 1 | R165: 867 | S165: 3086 | T165: 0 | U165: 33 | V165: 80 | W165: 带动周边经济发展和解决有劳动能力的贫困户就业，促进脱贫户、监测户多渠道长期稳定收益增收，助推全村巩固拓展脱贫攻坚成果同乡村振兴有效衔接。 | X165: 带动全村农户867户、3086人，其中脱贫户32户76人，监测户1户4人
A166: 161 | B166: 产业发展 | C166: 生产项目 | D166: 光伏电站建设 | E166: 新开镇 | F166: 万福村 | G166: 村部车棚光伏电站建设 | H166: 新建 | I166: 万福村部 | J166: 2026-05-07 | K166: 2026-05-31 | L166: 万福村 | M166: 建村部车棚光伏电站42KW、公共充电桩2个 | N166: 18 | O166: 10 | P166: 8 | Q166: 1 | R166: 1331 | S166: 5122 | T166: 0 | U166: 90 | V166: 235 | W166: 带动周边经济发展和解决有劳动能力的贫困户就业，促进脱贫户、监测户多渠道长期稳定收益增收，助推全村巩固拓展脱贫攻坚成果同乡村振兴有效衔接元，村级集体经济每年收入2万元，收益期20年，累计收益35万元以上。 | X166: 带动全村农户1331户、5122人，其中脱贫户90户235人，监测户19户46人
A167: 162 | B167: 产业发展 | C167: 产业服务支撑项目 | D167: 农业社会化服务 | E167: 新开镇 | F167: 万福村 | G167: 万福村集体农机合作社 | H167: 新建 | I167: 万福村 | J167: 2026-05-07 | K167: 2026-05-31 | L167: 万福村 | M167: 购置收割机、旋耕机、割草机、打捆机各一台 | N167: 20 | O167: 20 | P167: 0 | Q167: 1 | R167: 1331 | S167: 5122 | T167: 0 | U167: 90 | V167: 235 | W167: 带动周边经济发展和解决有劳动能力的贫困户就业，促进脱贫户、监测户多渠道长期稳定收益增收，助推全村巩固拓展脱贫攻坚成果同乡村振兴有效衔接。 | X167: 带动全村农户1331户、5122人，其中脱贫户90户235人，监测户19户46人
A168: 163 | B168: 产业发展 | C168: 配套基础设施项目 | D168: 小型农田水利设施建设 | E168: 新开镇 | F168: 万福村 | G168: 九龙片三组湖哇塘维修 | H168: 新建 | I168: 万福村九龙片三组 | J168: 2026-01-05 | K168: 2026-03-05 | L168: 万福村 | M168: 湖哇塘堤驳岸护砌75m³、清淤2000方、低涵维修 | N168: 10 | O168: 5 | P168: 5 | Q168: 1 | R168: 76 | S168: 344 | T168: 0 | U168: 8 | V168: 19 | W168: 带动周边经济发展和解决有劳动能力的贫困户就业，促进脱贫户、监测户多渠道长期稳定收益增收，助推全村巩固拓展脱贫攻坚成果同乡村振兴有效衔接。 | X168: 带动全村农户76户、344人，其中脱贫户8户19人，监测户1户1人
A169: 164 | B169: 乡村建设行动 | C169: 农村基础设施 | D169: 农村道路建设 （通村、通户路） | E169: 新开镇 | F169: 万福村 | G169: 九龙片五组燕岩通组路硬化 | H169: 新建 | I169: 万福村九龙片五组 | J169: 2026-05-07 | K169: 2026-05-31 | L169: 万福村 | M169: 1.4公里道路硬化 | N169: 60 | O169: 10 | P169: 50 | Q169: 1 | R169: 1331 | S169: 5122 | T169: 0 | U169: 90 | V169: 235 | W169: 带动周边经济发展和解决有劳动能力的贫困户就业，促进脱贫户、监测户多渠道长期稳定收益增收，助推全村巩固拓展脱贫攻坚成果同乡村振兴有效衔接。 | X169: 带动全村农户1331户、5122人，其中脱贫户90户235人，监测户19户46人
A170: 165 | B170: 产业发展 | C170: 生产项目 | D170: 光伏电站建设 | E170: 新开镇 | F170: 马山村 | G170: 村部光伏发电项目 | H170: 新建 | I170: 马山村部 | J170: 2026-10-10 | K170: 2026-10-30 | L170: 马山村委会 | M170: 利用村部办公楼(2栋)屋面约800m2进行光伏发电项目,预计投入20万元左右. | N170: 20 | O170: 20 | Q170: 1 | R170: 1232 | S170: 4236 | T170: 1 | U170: 78 | V170: 206 | W170: 带动周边经济发展和解决有劳动能力的贫困户就业，促进脱贫户、监测户多渠道长期稳定收益增收，助推全村巩固拓展脱贫攻坚成果同乡村振兴有效衔接 | X170: 带动全村农户1232户、4236人，其中脱贫户78户196人，监测户4户10人
A171: 166 | B171: 产业发展 | C171: 产业服务支撑项目 | D171: 农业社会化服务 | E171: 新开镇 | F171: 马山村 | G171: 村集体农机化项目 | H171: 新建 | I171: 马山村 | J171: 2026-05-10 | K171: 2026-10-30 | L171: 马山村委会 | M171: 通过购置农机具，与种粮大户合作,为农业生产提供机械化服务，提高农业生产效率，降低生产成本，能够促进农业产业的发展，带动村集体和脱贫群众增收 。 | N171: 50 | O171: 50 | Q171: 1 | R171: 1232 | S171: 4236 | T171: 1 | U171: 78 | V171: 206 | W171: 带动周边经济发展和解决有劳动能力的贫困户就业，促进脱贫户、监测户多渠道长期稳定收益增收，助推全村巩固拓展脱贫攻坚成果同乡村振兴有效衔接 | X171: 带动全村农户1232户、4236人，其中脱贫户78户196人，监测户4户10人
A172: 167 | B172: 产业发展 | C172: 配套基础设施项目 | D172: 小型农田水利设施建设 | E172: 新开镇 | F172: 马山村 | G172: 永安片曾家-陶铺机埠及引水灌溉渠维修项目 | H172: 新建 | I172: 曾家组 | J172: 2026-09-30 | K172: 2026-10-30 | L172: 马山村委会 | M172: 因方家坡水库无法灌溉到曾家-陶铺两组约60余亩基本农田，在60-70年代在曾家-陶铺沿港附近修建机埠，该机埠以前是动力现改为电力，因年久失修房屋破损、设备故障及线路老化、引水灌溉渠（约860米）淤堵严重等现状；预计投入约24万元，可以解决两组21户60余亩农田灌溉. | N172: 24 | O172: 10 | P172: 14 | Q172: 1 | R172: 21 | S172: 65 | T172: 1 | U172: 3 | V172: 8 | W172: 解决两组21户（包括脱贫户3户五保户1户）60余亩农田灌溉,增加农户收入. | X172: 解决两组21户（包括脱贫户3户五保户1户）60余亩农田灌溉,增加农户收入.
A173: 168 | B173: 产业发展 | C173: 配套基础设施项目 | D173: 小型农田水利设施建设 | E173: 新开镇 | F173: 马山村 | G173: 方元片维修4个山塘维修 | H173: 新建 | I173: 方元片 | J173: 2026-09-30 | K173: 2026-10-30 | L173: 马山村委会 | M173: 主要是做好山塘清淤、低涵改造及塘堤加固，维修后可以灌溉农田约百余亩（包括脱贫户5户五保户2户），大大增加农民增收，预计投入约22万元. | N173: 22 | O173: 20 | P173: 2 | Q173: 1 | R173: 43 | S173: 135 | T173: 1 | U173: 5 | V173: 12 | W173: 可以灌溉农田约百余亩（包括脱贫户5户五保户2户），大大增加农民增收 | X173: 可以灌溉农田约百余亩（包括脱贫户5户五保户2户），大大增加农民增收
A174: 169 | B174: 产业发展 | C174: 生产项目 | D174: 水产养殖业发展 | E174: 新开镇 | F174: 马山村 | G174: 方元片中小型规模鳄鱼养殖场 | H174: 新建 | I174: 方元片 | J174: 2026-10-02 | K174: 2026-12-30 | L174: 马山村委会 | M174: 鳄鱼苗引进、标准化养殖池搭建、养殖管理以及初级产品（鳄鱼肉、鳄鱼皮）销售等环节。场地选址符合养殖区规划，配套建设保温、排污等设施，预计投入50万元左右。 | N174: 50 | O174: 50 | Q174: 1 | R174: 1232 | S174: 4236 | T174: 1 | U174: 78 | V174: 206 | W174: 带动周边经济发展和解决有劳动能力的贫困户就业，促进脱贫户、监测户多渠道长期稳定收益增收，助推全村巩固拓展脱贫攻坚成果同乡村振兴有效衔接 | X174: 带动全村农户1232户、4236人，其中脱贫户78户196人，监测户4户10人
A175: 170 | B175: 产业发展 | C175: 配套基础设施项目 | D175: 小型农田水利设施建设 | E175: 新开镇 | F175: 马店村 | G175: 香严九组樟树塘清淤，路面拓宽硬化项目 | H175: 新建 | I175: 香严片9组 | J175: 2026-09-01 | K175: 2026-11-01 | L175: 马店村 | M175: 塘内清淤，塘堤加宽加固段110米，砌挡土墙段65米，新路硬化段100米 | N175: 6.2 | O175: 5 | P175: 1.2 | Q175: 1 | R175: 62 | S175: 224 | T175: 1 | U175: 12 | V175: 31 | W175: 为解决香严片9组农田灌溉和生活用水，确保村民安全 | X175: 为解决香严片9组农田灌溉和生活用水，确保村民安全，其中脱贫户12户，31人。
A176: 171 | B176: 产业发展 | C176: 配套基础设施项目 | D176: 小型农田水利设施建设 | E176: 新开镇 | F176: 马店村 | G176: 马店片一组洗衣塘清淤维修项目 | H176: 新建 | I176: 马店片一组 | J176: 2026-07-01 | K176: 2026-08-01 | L176: 马店村 | M176: 塘内清淤，30米塘堤加宽加固，塘堤周围建新 | N176: 6 | O176: 5 | P176: 1 | Q176: 1 | R176: 31 | S176: 112 | T176: 1 | U176: 1 | V176: 3 | W176: 为解决马店片一组20余亩农田灌溉且确保村民生活正常用水 | X176: 为解决马店片一组20余亩农田灌溉且确保村民生活正常用水，其中脱贫户1户3人。
A177: 172 | B177: 产业发展 | C177: 配套基础设施项目 | D177: 小型农田水利设施建设 | E177: 新开镇 | F177: 马店村 | G177: 青岗片上章堰水毁维修项目 | H177: 重建 | I177: 青岗片上章组 | J177: 2026-08-01 | K177: 2026-09-01 | L177: 马店村 | M177: 堰决口长20米，宽3米，高2米，用砖和片石护砌，中间水泥沙浆浇灌 | N177: 2.5 | O177: 2 | P177: 0.5 | Q177: 1 | R177: 65 | S177: 219 | T177: 1 | U177: 8 | V177: 17 | W177: 为解决青岗片三章200余亩农田灌溉，确保农业正常生产 | X177: 为解决青岗片三章200余亩农田灌溉，确保农业正常生产，其中脱贫户8户17人。
A178: 173 | B178: 产业发展 | C178: 产业服务支撑项目 | D178: 农业社会化服务 | E178: 新开镇 | F178: 马店村 | G178: 农业机械设备 | H178: 新建 | I178: 马店村 | J178: 2026-03-01 | K178: 2026-04-01 | L178: 马店村 | M178: 铝拖旋耕机一台12万，轮拖收割机一台12万，收草机一台2.5万，碎草机一台1.5万 | N178: 28 | O178: 20 | P178: 8 | Q178: 1 | R178: 1123 | S178: 4539 | T178: 1 | U178: 103 | V178: 262 | W178: 带动全村经济发展，促进脱贫户监测户多梁还稳定增收，助推全村巩固脱贫攻坚成果同乡村振兴有效衔，村集体经济稳定增长 | X178: 带动全村农户1123户4536人，其中脱贫户97户248人，监测户6户14人。
A179: 174 | B179: 产业发展 | C179: 生产项目 | D179: 养殖业基地 | E179: 新开镇 | F179: 马店村 | G179: 工厂化养殖 | H179: 新建 | I179: 马店村青岗片 | J179: 2026-04-01 | K179: 2026-08-01 | L179: 马店村 | M179: 占地面积8亩，养殖特种名贵水产 | N179: 350 | O179: 50 | P179: 300 | Q179: 1 | R179: 1123 | S179: 4539 | T179: 1 | U179: 103 | V179: 262 | W179: 带动全村经济发展，促进脱贫户监测户多梁还稳定增收，助推全村巩固脱贫攻坚成果同乡村振兴有效衔，村集体经济稳定增长 | X179: 带动全村农户1123户4536人，其中脱贫户97户248人，监测户6户14人。
A180: 175 | B180: 产业发展 | C180: 生产项目 | D180: 光伏电站建设 | E180: 新开镇 | F180: 马店村 | G180: 新光伏发电项目 | H180: 新建 | I180: 马店村 | J180: 2026-07-01 | K180: 2026-08-01 | L180: 马店村 | M180: 420Kw光优电站占股比8% | N180: 120 | O180: 20 | P180: 100 | Q180: 1 | R180: 1123 | S180: 4539 | T180: 1 | U180: 103 | V180: 262 | W180: 带动全村经济发展，促进脱贫户监测户多梁还稳定增收，助推全村巩固脱贫攻坚成果同乡村振兴有效衔，村集体经济稳定增长 | X180: 带动全村农户1123户4536人，其中脱贫户97户248人，监测户6户14人。
A181: 176 | B181: 产业发展 | C181: 生产项目 | D181: 水产养殖业发展 | E181: 新开镇 | F181: 龙湾村 | G181: 龙湾村水产养殖项目 | H181: 新建 | I181: 龙湾村 | J181: 2026-03-01 | K181: 2026-04-30 | L181: 龙湾村 | M181: 流转山塘水库，投放鱼苗，进行鱼类养殖 | N181: 5 | O181: 5 | P181: 0 | Q181: 1 | R181: 1108 | S181: 4108 | T181: 0 | U181: 54 | V181: 152 | W181: 带动周边经济发展和解决有劳动能力的贫困户就业，促进脱贫户、监测户多渠道长期稳定收益增收，助推全村巩固拓展脱贫攻坚成果同乡村振兴有效衔接。 | X181: 带动全村农户1108户、4108人，其中脱贫户41户117人，监测户13户35人
A182: 177 | B182: 产业发展 | C182: 配套基础设施项目 | D182: 小型农田水利设施建设 | E182: 新开镇 | F182: 龙湾村 | G182: 罗公山塘维修工程 | H182: 新建 | I182: 龙湾村瞿保组 | J182: 2026-03-01 | K182: 2026-04-30 | L182: 龙湾村 | M182: 水面4.5亩，将该塘清淤护砌、塘堤加固、低涵重建 | N182: 4 | O182: 4 | P182: 0 | Q182: 1 | R182: 48 | S182: 175 | T182: 0 | U182: 3 | V182: 8 | W182: 改善灌溉条件，推动农业生产 | X182: 带动全村农户1108户、4108人，其中脱贫户41户117人，监测户13户35人
A183: 178 | B183: 产业发展 | C183: 配套基础设施项目 | D183: 小型农田水利设施建设 | E183: 新开镇 | F183: 龙湾村 | G183: 小二型水库中梗阻渠道维修护砌工程 | H183: 新建 | I183: 龙湾村 | J183: 2026-01-01 | K183: 2026-04-30 | L183: 龙湾村 | M183: 全村小二型水库下游渠道阻塞严重，预计维修1000米 | N183: 20 | O183: 20 | P183: 0 | Q183: 1 | R183: 1108 | S183: 4108 | T183: 0 | U183: 54 | V183: 152 | W183: 改善灌溉条件，推动农业生产 | X183: 带动全村农户1108户、4108人，其中脱贫户41户117人，监测户13户35人
A184: 179 | B184: 产业发展 | C184: 生产项目 | D184: 光伏电站建设 | E184: 新开镇 | F184: 居委会 | G184: 光伏发电站 | H184: 新建 | I184: 新开镇金湘裕米厂宿舍屋顶 | J184: 2025.12 | K184: 2026.03 | L184: 新开 | M184: 130千瓦村级光伏发电站 | N184: 20 | O184: 20 | P184: 0 | Q184: 1 | R184: 120 | S184: 340 | T184: 1 | U184: 8 | V184: 20 | W184: 收益形成后助脱贫户8户20人增收，增加集体经济收入 | X184: 收益形成后助脱贫户8户20人增收，增加集体经济收入
A185: 180 | B185: 产业发展 | C185: 生产项目 | D185: 光伏电站建设 | E185: 新开镇 | F185: 共和村 | G185: 共和村部光伏电站建设 | H185: 新建 | I185: 共和村 | J185: 2026.5.10 | K185: 2026.6.10 | L185: 共和村 | M185: 村部屋顶建光伏电站160KW公共充电桩2个 | N185: 40 | O185: 30 | P185: 10 | Q185: 1 | R185: 1226 | S185: 4750 | T185: 0 | U185: 68 | V185: 166 | W185: 带动周边经济发展和解决有劳动能力的贫困户就业，促进脱贫户、监测户多渠道长期稳定收益增收，助推全村巩固拓展脱贫攻坚成果同乡村振兴有效衔接元，村级集体经济每年收入6万元，收益期20年，累计收益120万。 | X185: 带动全村农户1226户、4750人，其中脱贫户55户131人，监测户13户35人
A186: 181 | B186: 产业发展 | C186: 产业服务支撑项目 | D186: 农业社会化服务 | E186: 新开镇 | F186: 共和村 | G186: 共和村集体农机合作社 | H186: 新建 | I186: 共和村 | J186: 2026.5.15 | K186: 2026.6.10 | L186: 共和村 | M186: 购置收割机、旋耕机、割草机、打捆机各一台 | N186: 26 | O186: 20 | P186: 6 | Q186: 1 | R186: 1226 | S186: 4750 | T186: 0 | U186: 68 | V186: 166 | W186: 带动周边经济发展和解决有劳动能力的贫困户就业，促进脱贫户、监测户多渠道长期稳定收益增收，助推全村巩固拓展脱贫攻坚成果同乡村振兴有效衔接。 | X186: 带动全村农户1226户、4750人，其中脱贫户55户131人，监测户13户35人
A187: 182 | B187: 乡村建设行动 | C187: 农村基础设施 | D187: 农村道路建设 （通村、通户路） | E187: 新开镇 | F187: 共和村 | G187: 大塘片乔河组道路硬化 | H187: 新建 | I187: 共和村大塘片乔河组 | J187: 2026.05.05 | K187: 2026.06.30 | L187: 共和村 | M187: 0.5公里道路硬化 | N187: 10 | O187: 8 | P187: 2 | Q187: 1 | R187: 28 | S187: 150 | T187: 0 | U187: 2 | V187: 5 | W187: 解决大塘片乔河组28户150人的交通安全出行和农业机械的正常通行 | X187: 带动乔河组28户150人，其中脱贫户2户5人
A188: 183 | B188: 产业发展 | C188: 配套基础设施项目 | D188: 小型农田水利设施建设 | E188: 新开镇 | F188: 常山村 | G188: 罗其堰整治工程 | H188: 新建 | I188: 常山村村、云天片4.5.6.7组 | J188: 2026-08-01 | K188: 2026-10-30 | L188: 常山村 | M188: 罗其堰是我村重要的水利设施，承担着周边良田灌溉和汛期防洪的关键功能。由于年久失修，目前堰体存在安全隐患， | N188: 8 | O188: 5 | P188: 3 | Q188: 1 | R188: 60 | S188: 200 | T188: 5 | U188: 17 | V188: 0 | W188: 堰内淤积严重，蓄水能力大幅下降，已严重影响农田灌溉效率，并对下游安全构成潜在威胁。对该堰进行彻底整治，是保障农业增产、农民增收和人民生命财产安全的迫切需求，为群众增收 | X188: 带动了本村60户200人受益，其中脱贫5户，17人
A189: 184 | B189: 乡村建设行动 | C189: 农村基础设施 | D189: 农村道路建设 （通村、通户路） | E189: 新开镇 | F189: 常山村 | G189: 甘冲道路硬化 | H189: 新建 | I189: 常山村村部、常山片9.14组 | J189: 2026-08-01 | K189: 2026-10-30 | L189: 常山村 | M189: 甘冲道路目前为砂石土路，每逢雨雪天气便泥泞不堪，严重影响了沿线村民的日常出行、生产生活和农副产品运输，制约了当地的经济发展。 | N189: 35 | O189: 20 | P189: 15 | Q189: 1 | R189: 10 | S189: 40 | T189: 1 | U189: 1 | V189: 158 | W189: 本年度预计进行道路硬化，保障村民安全出行，带动经济的复苏，为群众增收 | X189: 带动了本村10户40人受益，其中脱贫1户，1人
A190: 185 | B190: 产业发展 | C190: 生产项目 | D190: 养殖业基地 | E190: 新开镇 | G190: “两有人员”特色养殖业 | H190: 新建 | I190: 新开镇各村 | J190: 2026.05 | K190: 2026.10 | L190: 新开镇人民政府 | M190: “两有对象”产业奖补，给全镇脱贫户、监测户输送鸡苗、猪等 | O190: 20 | Q190: 10 | R190: 587 | S190: 1500 | U190: 104 | V190: 251 | W190: 给全镇脱贫户、监测户中的“两有人员”输送鸡苗、猪等，助力其家庭增收。
A191: 186 | B191: 就业项目 | C191: 务工补助 | D191: 生产奖补、务工奖补 | E191: 新开镇 | F191: 新开镇 | G191: 产业奖补 | H191: 续建 | I191: 新开镇各村 | J191: 2026.8 | K191: 2026.12 | L191: 新开镇人民政府 | M191: 对全镇脱贫户、监测户通过自身能力发展种养业，视其情况给予资金奖补，实现“多干多补，少干少补” | O191: 25 | Q191: 10 | R191: 587 | S191: 1500 | U191: 104 | V191: 251 | W191: 对全镇自主发展特色种养业的农户给予资金奖补，实现多干多补，少干少补，鼓励其增加集体收入。
A192: 187 | B192: 产业发展 | C192: 生产项目 | D192: 种植业基地 | E192: 杨林街镇 | F192: 花果园村 | G192: 花果园村和美组金盆柚种植 | H192: 新建 | I192: 花果园村 | J192: 2026-03-15 | K192: 2026-06-19 | L192: 花果园村 | M192: 新建130亩柚子种植基地 | N192: 65 | O192: 50 | P192: 15 | Q192: 1 | R192: 47 | S192: 152 | U192: 47 | V192: 152 | W192: 目标1：新建≥20亩柚子基地，发展村集体经济； 目标2：贫困劳动力参与务工，增加收入。 | X192: 贫困劳动力参与务工，增加收入。
A193: 188 | B193: 乡村建设行动 | C193: 农村基础设施 | D193: 农村道路建设 （通村、通户路） | E193: 杨林街镇 | F193: 花果园村 | G193: 吴师龙至敬老院道路硬化 | H193: 新建 | I193: 花果园村 | J193: 2026-03-28 | K193: 2026-06-27 | L193: 花果园村 | M193: 道路长300米，宽3.5米，厚度20CM道路硬化 | N193: 13 | O193: 10 | P193: 3 | Q193: 1 | R193: 11 | S193: 56 | U193: 2 | V193: 6 | W193: 目标1：新建、硬化道路，完善交通基础设施。 目标2：有益于提升当地农业生产效益，为农民创收； 目标3：完成吴师龙道路长300M，宽3.5M，厚度0.2M道路硬化。 | X193: 带动生产, 其他
A194: 189 | B194: 产业发展 | C194: 生产项目 | D194: 养殖业基地 | E194: 杨林街镇 | F194: 兰泽村 | G194: 兰泽村肉鸽养殖产业发展项目（二期） | H194: 扩建 | I194: 兰泽村 | J194: 2026-07-10 | K194: 2026-12-20 | L194: 兰泽村 | M194: 计划投资30万资金建设鸽场，扩建两座鸽棚，配套齐全，购买1000对鸽子进行养殖 | N194: 30 | O194: 20 | P194: 10 | Q194: 1 | R194: 144 | S194: 650 | U194: 5 | V194: 26 | W194: 目标1：养殖1000对鸽子，发展村集体经济； 目标2：贫困劳动力参与务工，增加收入。 | X194: 贫困劳动力参与务工，增加收入。
A195: 190 | B195: 乡村建设行动 | C195: 农村基础设施 | D195: 农村道路建设 （通村、通户路） | E195: 杨林街镇 | F195: 兰泽村 | G195: 山上雷组至龟形组道路拓宽硬化 | H195: 改建 | I195: 兰泽村龟形组 | J195: 2026-05-01 | K195: 2026-07-01 | L195: 兰泽村 | M195: 将山上雷组至龟形组道路原路基清理平整后拓宽硬化长约520米、宽2.5米。 | N195: 26 | O195: 20 | P195: 6 | Q195: 1 | R195: 135 | S195: 420 | U195: 6 | V195: 29 | W195: 目标1：新建、硬化道路，完善交通基础设施。 目标2：有益于提升当地农业生产效益，为农民创收； 目标3：山上雷组至龟形组道路长520M，拓宽2.5M，厚度0.2M道路硬化。 | X195: 带动农业发展
A196: 191 | B196: 乡村建设行动 | C196: 农村基础设施 | D196: 农村道路建设 （通村、通户路） | E196: 杨林街镇 | F196: 兰泽村 | G196: 塘先组道路拓宽硬化 | H196: 改建 | I196: 兰泽村塘先组 | J196: 2026-08-01 | K196: 2026-10-10 | L196: 兰泽村 | M196: 将塘先组道路从原先的3.5拓宽2米至5.5米，长约350米。 | N196: 10 | O196: 8 | P196: 2 | Q196: 1 | R196: 42 | S196: 150 | U196: 5 | V196: 30 | W196: 目标1：新建、硬化道路，完善交通基础设施。 目标2：有益于提升当地农业生产效益，为农民创收； 目标3：塘先组道路长350M，拓宽2M，厚度0.2M道路硬化。 | X196: 带动农业发展
A197: 192 | B197: 产业发展 | C197: 生产项目 | D197: 种植业基地 | E197: 杨林街镇 | F197: 杨林街村 | G197: 杨林街村付朝砖厂金盆柚扩建 | H197: 扩建 | I197: 杨林街村付朝砖厂 | J197: 2026-03-15 | K197: 2026-06-19 | L197: 杨林街村 | M197: 扩建26亩柚子种植基地 | N197: 16 | O197: 10 | P197: 6 | Q197: 1 | R197: 85 | S197: 225 | T197: 0 | U197: 7 | V197: 24 | W197: 目标1：扩建≥26亩柚子基地，发展村集体经济； 目标2：贫困劳动力参与务工，增加收入。 | X197: 贫困劳动力参与务工，增加收入。
A198: 193 | B198: 乡村建设行动 | C198: 农村基础设施 | D198: 农村道路建设 （通村、通户路） | E198: 杨林街镇 | F198: 杨林街村 | G198: 杨林街村白泥片张思组屋场路 硬化 | H198: 新建 | I198: 杨林街村白泥片张思组 | J198: 2026-03-28 | K198: 2026-06-27 | L198: 杨林街村 | M198: 张思组屋场路全长526米，路基5米，硬化3.5米，厚度200mm道路硬化 | N198: 25 | O198: 16 | P198: 9 | Q198: 1 | R198: 55 | S198: 174 | T198: 0 | U198: 4 | V198: 18 | W198: 目标1：新建、硬化道路，完善交通基础设施，解决15户群众出行困难； 目标2：有益于提升当地农业生产效益，为农民创收； 目标3：张思组屋场路全长526米，路基5米，硬化3.5米，厚度200mm道路硬化 | X198: 带动生产, 其他
A199: 194 | B199: 产业发展 | C199: 生产项目 | D199: 种植业基地 | E199: 杨林街镇 | F199: 溪源村 | G199: 溪源村金盆柚种植（二期） | H199: 新建 | I199: 溪源村 | J199: 2026-03-15 | K199: 2026-06-19 | L199: 溪源村 | M199: 新建20亩柚子种植基地 | N199: 15 | O199: 10 | P199: 5 | Q199: 1 | R199: 40 | S199: 101 | T199: 1 | U199: 14 | V199: 33 | W199: 目标1：新建≥20亩柚子基地，发展村集体经济； 目标2：贫困劳动力参与务工，增加收入。 | X199: 贫困劳动力参与务工，增加收入。
A200: 195 | B200: 乡村建设行动 | C200: 农村基础设施 | D200: 农村道路建设 （通村、通户路） | E200: 杨林街镇 | F200: 溪源村 | G200: 溪源村花园组道路硬化 | H200: 新建 | I200: 溪源村 | J200: 2026-04-01 | K200: 2026-05-01 | L200: 溪源村 | M200: 道路长约500米，硬化3.5m，厚度20cm | N200: 20 | O200: 15 | P200: 5 | Q200: 1 | R200: 12 | S200: 50 | T200: 1 | U200: 4 | V200: 13 | W200: 目标1：新建、硬化道路，完善交通基础设施，解决6户群众出行困难； 目标2：有益于提升当地农业生产效益，为农民创收； 目标3：完成溪源村花园组道路长500M，宽3.5M，厚度0.2M道路硬化。 | X200: 带动生产, 其他
... 244 more rows
